Publisher Label,Publisher URI,"Supplier ID","Supplier","Invoice No.","Amount £","Purpose","Transaction Number","Payment Date","Organisational Unit","Cost Centre(T)","Internal Category Number"
"Wolverhampton City Council","http://opendatacommunities.org/id/metropolitan-district-council/wolverhampton","700044","Access To Business","581","11,000.00","Training Expenses","130239501","09/01/2019","Local Economy","Universal Credit","R1650"
"Wolverhampton City Council","http://opendatacommunities.org/id/metropolitan-district-council/wolverhampton","700264","Acorn Environmental Mgt Group Limited","12154","1,967.51","Grounds Maintenance - Contract","130239830","11/01/2019","Environmental Maintenance","Arbor Scheme","R2075"
"Wolverhampton City Council","http://opendatacommunities.org/id/metropolitan-district-council/wolverhampton","700264","Acorn Environmental Mgt Group Limited","12132","656.28","Grounds Maintenance - Contract","130239677","11/01/2019","Environmental Maintenance","Arbor Scheme","R2075"
"Wolverhampton City Council","http://opendatacommunities.org/id/metropolitan-district-council/wolverhampton","700264","Acorn Environmental Mgt Group Limited","12221","1,018.68","Grounds Maintenance - Contract","130241339","25/01/2019","Environmental Maintenance","Arbor Scheme","R2075"
"Wolverhampton City Council","http://opendatacommunities.org/id/metropolitan-district-council/wolverhampton","700264","Acorn Environmental Mgt Group Limited","12187","1,175.00","Grounds Maintenance - Contract","130240877","25/01/2019","Environmental Maintenance","Arbor Scheme","R2075"
"Wolverhampton City Council","http://opendatacommunities.org/id/metropolitan-district-council/wolverhampton","700301","M Sicilia","0014","80.00","TPP - Maintenance Contractor - General","190545879","11/01/2019","Transportation","Cycling Schemes - Bikeability","R5720"
"Wolverhampton City Council","http://opendatacommunities.org/id/metropolitan-district-council/wolverhampton","700341","Acs Business Supplies Limited","SINV00495303","55.91","Stationery","130239048","18/01/2019","Governance Services","Business Support (Corporate Admin Review)","R4308"
"Wolverhampton City Council","http://opendatacommunities.org/id/metropolitan-district-council/wolverhampton","700341","Acs Business Supplies Limited","SINV00495302","55.04","Stationery","130239047","18/01/2019","Public Service Reform","Adult Care Scanning Team","R4308"
"Wolverhampton City Council","http://opendatacommunities.org/id/metropolitan-district-council/wolverhampton","700341","Acs Business Supplies Limited","SINV00491697","41.76","Stationery","130237621","02/01/2019","Governance Services","Business Support (Corporate Admin Review)","R4308"
"Wolverhampton City Council","http://opendatacommunities.org/id/metropolitan-district-council/wolverhampton","700341","Acs Business Supplies Limited","SCRN00059743","-34.99","Stationery","130241210","25/01/2019","Local Economy","Global Budgets","R4308"
"Wolverhampton City Council","http://opendatacommunities.org/id/metropolitan-district-council/wolverhampton","700341","Acs Business Supplies Limited","SINV00491741","22.95","Stationery","130237623","02/01/2019","Governance Services","Business Support (Corporate Admin Review)","R4308"
"Wolverhampton City Council","http://opendatacommunities.org/id/metropolitan-district-council/wolverhampton","700341","Acs Business Supplies Limited","SINV00491871","65.24","Stationery","130237624","02/01/2019","Governance Services","Business Support (Corporate Admin Review)","R4308"
"Wolverhampton City Council","http://opendatacommunities.org/id/metropolitan-district-council/wolverhampton","700341","Acs Business Supplies Limited","SINV00491698","14.99","Stationery","130237622","02/01/2019","Governance Services","Business Support (Corporate Admin Review)","R4308"
"Wolverhampton City Council","http://opendatacommunities.org/id/metropolitan-district-council/wolverhampton","700341","Acs Business Supplies Limited","SINV00482333","1.27","Stationery","130233846","02/01/2019","Specialist Support","Intensive Family Support & Family Group Conferencing Team","R4308"
"Wolverhampton City Council","http://opendatacommunities.org/id/metropolitan-district-council/wolverhampton","700341","Acs Business Supplies Limited","SINV00493257","24.92","Stationery","130238327","09/01/2019","Independent Living Service","Independent Living Service","R4308"
"Wolverhampton City Council","http://opendatacommunities.org/id/metropolitan-district-council/wolverhampton","700341","Acs Business Supplies Limited","SINV00495461","40.24","Stationery","130239292","25/01/2019","Governance Services","Business Support (Corporate Admin Review)","R4308"
"Wolverhampton City Council","http://opendatacommunities.org/id/metropolitan-district-council/wolverhampton","700341","Acs Business Supplies Limited","SINV00495456","121.68","Stationery","130239287","25/01/2019","Governance Services","Business Support (Corporate Admin Review)","R4308"
"Wolverhampton City Council","http://opendatacommunities.org/id/metropolitan-district-council/wolverhampton","700341","Acs Business Supplies Limited","SINV00495457","42.89","Stationery","130239288","25/01/2019","Specialist Support","Upper Pendeford Farm Short Breaks Centre","R4308"
"Wolverhampton City Council","http://opendatacommunities.org/id/metropolitan-district-council/wolverhampton","700341","Acs Business Supplies Limited","SINV00493685","107.45","Stationery","130238528","09/01/2019","Governance Services","Business Support (Corporate Admin Review)","R4308"
"Wolverhampton City Council","http://opendatacommunities.org/id/metropolitan-district-council/wolverhampton","700341","Acs Business Supplies Limited","SINV00492650","14.04","Stationery","130238320","09/01/2019","Local Economy","Blakenhall Community & Healthy Living Centre","R4308"
"Wolverhampton City Council","http://opendatacommunities.org/id/metropolitan-district-council/wolverhampton","700341","Acs Business Supplies Limited","SINV00493687","34.99","Stationery","130238530","09/01/2019","Specialist Support","Upper Pendeford Farm Short Breaks Centre","R4308"
"Wolverhampton City Council","http://opendatacommunities.org/id/metropolitan-district-council/wolverhampton","700341","Acs Business Supplies Limited","SINV00493256","76.49","Stationery","130238326","09/01/2019","Governance Services","Business Support (Corporate Admin Review)","R4308"
"Wolverhampton City Council","http://opendatacommunities.org/id/metropolitan-district-council/wolverhampton","700341","Acs Business Supplies Limited","SINV00490640","346.99","Photocopier Charges - Consumables","130239831","09/01/2019","Corporate Communications","Communications & Marketing - General","R4306"
"Wolverhampton City Council","http://opendatacommunities.org/id/metropolitan-district-council/wolverhampton","700341","Acs Business Supplies Limited","SINV00492924","51.62","Stationery","130238324","09/01/2019","Governance Services","Business Support (Corporate Admin Review)","R4308"
"Wolverhampton City Council","http://opendatacommunities.org/id/metropolitan-district-council/wolverhampton","700341","Acs Business Supplies Limited","SINV00492649","194.30","Stationery","130238319","09/01/2019","Governance Services","Business Support (Corporate Admin Review)","R4308"
"Wolverhampton City Council","http://opendatacommunities.org/id/metropolitan-district-council/wolverhampton","700341","Acs Business Supplies Limited","SINV00493724","56.97","Stationery","130238532","09/01/2019","Governance Services","Business Support (Corporate Admin Review)","R4308"
"Wolverhampton City Council","http://opendatacommunities.org/id/metropolitan-district-council/wolverhampton","700341","Acs Business Supplies Limited","SINV00493516","30.89","Stationery","130238328","09/01/2019","Specialist Support","Upper Pendeford Farm Short Breaks Centre","R4308"
"Wolverhampton City Council","http://opendatacommunities.org/id/metropolitan-district-council/wolverhampton","700341","Acs Business Supplies Limited","SINV00493158","19.44","Stationery","130238325","09/01/2019","Governance Services","Business Support (Corporate Admin Review)","R4308"
"Wolverhampton City Council","http://opendatacommunities.org/id/metropolitan-district-council/wolverhampton","700341","Acs Business Supplies Limited","SINV00493725","76.82","Stationery","130238533","09/01/2019","Environmental Maintenance","Ground Maintenance East","R4308"
"Wolverhampton City Council","http://opendatacommunities.org/id/metropolitan-district-council/wolverhampton","700341","Acs Business Supplies Limited","SINV00492871","36.04","Stationery","130238323","09/01/2019","Governance Services","Business Support (Corporate Admin Review)","R4308"
"Wolverhampton City Council","http://opendatacommunities.org/id/metropolitan-district-council/wolverhampton","700341","Acs Business Supplies Limited","SINV00493726","15.00","Stationery","130238534","09/01/2019","Governance Services","Business Support (Corporate Admin Review)","R4308"
"Wolverhampton City Council","http://opendatacommunities.org/id/metropolitan-district-council/wolverhampton","700341","Acs Business Supplies Limited","SINV00493726","36.12","Stationery","130238534","09/01/2019","Governance Services","Business Support (Corporate Admin Review)","R4308"
"Wolverhampton City Council","http://opendatacommunities.org/id/metropolitan-district-council/wolverhampton","700341","Acs Business Supplies Limited","SINV00493517","30.21","Stationery","130238329","09/01/2019","Specialist Support","Key To Inspiration","R4308"
"Wolverhampton City Council","http://opendatacommunities.org/id/metropolitan-district-council/wolverhampton","700341","Acs Business Supplies Limited","SINV00430268","27.88","Stationery","130207075","09/01/2019","Adult Education","Service Wide","R4308"
"Wolverhampton City Council","http://opendatacommunities.org/id/metropolitan-district-council/wolverhampton","700341","Acs Business Supplies Limited","SINV00493686","360.72","Stationery","130238529","09/01/2019","Adult Education","Service Wide","R4308"
"Wolverhampton City Council","http://opendatacommunities.org/id/metropolitan-district-council/wolverhampton","700341","Acs Business Supplies Limited","SINV00493686","0.30","Stationery","130238529","09/01/2019","Adult Education","Service Wide","R4308"
"Wolverhampton City Council","http://opendatacommunities.org/id/metropolitan-district-council/wolverhampton","700341","Acs Business Supplies Limited","SINV00492870","19.56","Stationery","130238322","09/01/2019","Governance Services","Business Support (Corporate Admin Review)","R4308"
"Wolverhampton City Council","http://opendatacommunities.org/id/metropolitan-district-council/wolverhampton","700341","Acs Business Supplies Limited","SINV00492465","42.99","Stationery","130238318","04/01/2019","Governance Services","Business Support (Corporate Admin Review)","R4308"
"Wolverhampton City Council","http://opendatacommunities.org/id/metropolitan-district-council/wolverhampton","700341","Acs Business Supplies Limited","SINV00484423","74.25","Stationery","130234894","30/01/2019","ICTS","Document Centre - General","R4308"
"Wolverhampton City Council","http://opendatacommunities.org/id/metropolitan-district-council/wolverhampton","700341","Acs Business Supplies Limited","SINV00490312","346.99","Photocopier Charges - Consumables","130239286","04/01/2019","Corporate Communications","Communications & Marketing - General","R4306"
"Wolverhampton City Council","http://opendatacommunities.org/id/metropolitan-district-council/wolverhampton","700341","Acs Business Supplies Limited","SCRN00059418","-74.25","Stationery","130242104","30/01/2019","ICTS","Document Centre - General","R4308"
"Wolverhampton City Council","http://opendatacommunities.org/id/metropolitan-district-council/wolverhampton","700341","Acs Business Supplies Limited","SINV00484420","148.50","Stationery","130234891","30/01/2019","ICTS","Document Centre - General","R4308"
"Wolverhampton City Council","http://opendatacommunities.org/id/metropolitan-district-council/wolverhampton","700341","Acs Business Supplies Limited","SINV00481749","1,840.54","Stationery","130233638","11/01/2019","Operation & Maintenance of Existing Network","Traffic Management for Corporate Events","R4308"
"Wolverhampton City Council","http://opendatacommunities.org/id/metropolitan-district-council/wolverhampton","700341","Acs Business Supplies Limited","SINV00493907","18.49","Stationery","130238737","11/01/2019","Governance Services","Business Support (Corporate Admin Review)","R4308"
"Wolverhampton City Council","http://opendatacommunities.org/id/metropolitan-district-council/wolverhampton","700341","Acs Business Supplies Limited","SINV00492869","10.70","Stationery","130238321","23/01/2019","Governance Services","Business Support (Corporate Admin Review)","R4308"
"Wolverhampton City Council","http://opendatacommunities.org/id/metropolitan-district-council/wolverhampton","700341","Acs Business Supplies Limited","SINV00495229","139.02","Stationery","130239046","23/01/2019","Governance Services","Business Support (Corporate Admin Review)","R4308"
"Wolverhampton City Council","http://opendatacommunities.org/id/metropolitan-district-council/wolverhampton","700341","Acs Business Supplies Limited","SINV00493723","55.98","Stationery","130238531","16/01/2019","Governance Services","Business Support (Corporate Admin Review)","R4308"
"Wolverhampton City Council","http://opendatacommunities.org/id/metropolitan-district-council/wolverhampton","700341","Acs Business Supplies Limited","SINV00493723","56.46","Stationery","130238531","16/01/2019","Governance Services","Business Support (Corporate Admin Review)","R4308"
"Wolverhampton City Council","http://opendatacommunities.org/id/metropolitan-district-council/wolverhampton","700341","Acs Business Supplies Limited","SINV00494154","138.97","Stationery","130238816","16/01/2019","Governance Services","Business Support (Corporate Admin Review)","R4308"
"Wolverhampton City Council","http://opendatacommunities.org/id/metropolitan-district-council/wolverhampton","700341","Acs Business Supplies Limited","SINV00494155","346.99","Photocopier Charges - Consumables","130238817","16/01/2019","Corporate Communications","Communications & Marketing - General","R4306"
"Wolverhampton City Council","http://opendatacommunities.org/id/metropolitan-district-council/wolverhampton","700341","Acs Business Supplies Limited","SINV00495459","15.74","Stationery","130239290","25/01/2019","Governance Services","Business Support (Corporate Admin Review)","R4308"
"Wolverhampton City Council","http://opendatacommunities.org/id/metropolitan-district-council/wolverhampton","700341","Acs Business Supplies Limited","SINV00495458","27.99","Stationery","130239289","25/01/2019","Licensing","Licensing - General","R4308"
"Wolverhampton City Council","http://opendatacommunities.org/id/metropolitan-district-council/wolverhampton","700341","Acs Business Supplies Limited","SINV00495460","15.99","Stationery","130239291","25/01/2019","Governance Services","Business Support (Corporate Admin Review)","R4308"
"Wolverhampton City Council","http://opendatacommunities.org/id/metropolitan-district-council/wolverhampton","700341","Acs Business Supplies Limited","SINV00495883","95.94","Stationery","130240175","30/01/2019","Carer Support","Carers Support","R4308"
"Wolverhampton City Council","http://opendatacommunities.org/id/metropolitan-district-council/wolverhampton","700604","P Kitterick","00044","560.00","TPP - Maintenance Contractor - General","190545883","04/01/2019","Transportation","Cycling Schemes - Bikeability","R5720"
"Wolverhampton City Council","http://opendatacommunities.org/id/metropolitan-district-council/wolverhampton","700663","Partisip8/P Sicilia","758","720.00","TPP - Maintenance Contractor - General","190555184","30/01/2019","Transportation","Cycling Schemes - Bikeability","R5720"
"Wolverhampton City Council","http://opendatacommunities.org/id/metropolitan-district-council/wolverhampton","700663","Partisip8/P Sicilia","757","800.00","TPP - Maintenance Contractor - General","190545882","04/01/2019","Transportation","Cycling Schemes - Bikeability","R5720"
"Wolverhampton City Council","http://opendatacommunities.org/id/metropolitan-district-council/wolverhampton","700715","Adoption Matters Northwest","190783","1,238.75","Direct Work With Children","130237799","09/01/2019","Children & Young People In Care","Adoption Support Fund","R6310"
"Wolverhampton City Council","http://opendatacommunities.org/id/metropolitan-district-council/wolverhampton","700761","R Millard","000053","97.50","Services - Professional Fees","190555182","30/01/2019","Transportation","Advisory Road Markings and Disabled Bays","R4400"
"Wolverhampton City Council","http://opendatacommunities.org/id/metropolitan-district-council/wolverhampton","700761","R Millard","52","100.00","Services - Professional Fees","190545877","04/01/2019","Transportation","Advisory Road Markings and Disabled Bays","R4400"
"Wolverhampton City Council","http://opendatacommunities.org/id/metropolitan-district-council/wolverhampton","700770","Adt Fire And Security PLC","40233499-02","-186.00","Services - Security","130239295","23/01/2019","Maintenance Programme","Centralised R&M","R4405"
"Wolverhampton City Council","http://opendatacommunities.org/id/metropolitan-district-council/wolverhampton","700770","Adt Fire And Security PLC","34926420-02","327.20","R&M - Departmental planned (internal)","130234995","23/01/2019","Maintenance Programme","Centralised R&M","R2000"
"Wolverhampton City Council","http://opendatacommunities.org/id/metropolitan-district-council/wolverhampton","700770","Adt Fire And Security PLC","38006367-02","520.00","Construction and Conversion","130240464","16/01/2019","-","Development of Cultural Estate","C1100"
"Wolverhampton City Council","http://opendatacommunities.org/id/metropolitan-district-council/wolverhampton","700770","Adt Fire And Security PLC","36268542-02","560.00","Services - Security","130240364","23/01/2019","Maintenance Programme","Centralised R&M","R4405"
"Wolverhampton City Council","http://opendatacommunities.org/id/metropolitan-district-council/wolverhampton","700770","Adt Fire And Security PLC","39718616-02","32.20","Fixtures and Fittings - R&M","130237382","23/01/2019","Maintenance Programme","Centralised R&M","R2502"
"Wolverhampton City Council","http://opendatacommunities.org/id/metropolitan-district-council/wolverhampton","700770","Adt Fire And Security PLC","39272547-02","579.51","Fixtures and Fittings - R&M","130236967","23/01/2019","Maintenance Programme","Centralised R&M","R2502"
"Wolverhampton City Council","http://opendatacommunities.org/id/metropolitan-district-council/wolverhampton","700770","Adt Fire And Security PLC","39238186-02","6,250.21","Fixtures and Fittings - R&M","130225643","23/01/2019","Maintenance Programme","Centralised R&M","R2502"
"Wolverhampton City Council","http://opendatacommunities.org/id/metropolitan-district-council/wolverhampton","700770","Adt Fire And Security PLC","40216477-02","20.41","Fixtures and Fittings - R&M","130237285","23/01/2019","Maintenance Programme","Centralised R&M","R2502"
"Wolverhampton City Council","http://opendatacommunities.org/id/metropolitan-district-council/wolverhampton","700770","Adt Fire And Security PLC","39481961-02","58.00","Services - Security","130236968","23/01/2019","Maintenance Programme","Centralised R&M","R4405"
"Wolverhampton City Council","http://opendatacommunities.org/id/metropolitan-district-council/wolverhampton","700770","Adt Fire And Security PLC","39718589-02","615.33","Fixtures and Fittings - R&M","130237625","23/01/2019","Maintenance Programme","Centralised R&M","R2502"
"Wolverhampton City Council","http://opendatacommunities.org/id/metropolitan-district-council/wolverhampton","700770","Adt Fire And Security PLC","39997013-02","163.00","Services - Security","130236513","25/01/2019","Maintenance Programme","Centralised R&M","R4405"
"Wolverhampton City Council","http://opendatacommunities.org/id/metropolitan-district-council/wolverhampton","700770","Adt Fire And Security PLC","39745655-02","224.00","Services - Security","130237283","25/01/2019","Maintenance Programme","Centralised R&M","R4405"
"Wolverhampton City Council","http://opendatacommunities.org/id/metropolitan-district-council/wolverhampton","700770","Adt Fire And Security PLC","39007070-02","112.00","Services - Security","130239294","25/01/2019","Maintenance Programme","Centralised R&M","R4405"
"Wolverhampton City Council","http://opendatacommunities.org/id/metropolitan-district-council/wolverhampton","700770","Adt Fire And Security PLC","40230531-02","401.04","Services - Security","130238951","25/01/2019","Maintenance Programme","Centralised R&M","R4405"
"Wolverhampton City Council","http://opendatacommunities.org/id/metropolitan-district-council/wolverhampton","700770","Adt Fire And Security PLC","39256670-02","186.00","Services - Security","130237282","25/01/2019","Maintenance Programme","Centralised R&M","R4405"
"Wolverhampton City Council","http://opendatacommunities.org/id/metropolitan-district-council/wolverhampton","700770","Adt Fire And Security PLC","39964399-02","299.39","Services - Security","130237284","25/01/2019","Maintenance Programme","Centralised R&M","R4405"
"Wolverhampton City Council","http://opendatacommunities.org/id/metropolitan-district-council/wolverhampton","700770","Adt Fire And Security PLC","40235675-02","655.27","Services - Security","130239296","25/01/2019","Maintenance Programme","Centralised R&M","R4405"
"Wolverhampton City Council","http://opendatacommunities.org/id/metropolitan-district-council/wolverhampton","700770","Adt Fire And Security PLC","39988819-02","58.00","Services - Security","130239502","25/01/2019","Maintenance Programme","Centralised R&M","R4405"
"Wolverhampton City Council","http://opendatacommunities.org/id/metropolitan-district-council/wolverhampton","700770","Adt Fire And Security PLC","35784829-02","393.83","Fixtures and Fittings - R&M","130241632","25/01/2019","Maintenance Programme","Centralised R&M","R2502"
"Wolverhampton City Council","http://opendatacommunities.org/id/metropolitan-district-council/wolverhampton","700770","Adt Fire And Security PLC","39747566-02","93.00","Services - Security","130236048","25/01/2019","Maintenance Programme","Centralised R&M","R4405"
"Wolverhampton City Council","http://opendatacommunities.org/id/metropolitan-district-council/wolverhampton","700770","Adt Fire And Security PLC","39997806-02","163.00","Services - Security","130236740","25/01/2019","Maintenance Programme","Centralised R&M","R4405"
"Wolverhampton City Council","http://opendatacommunities.org/id/metropolitan-district-council/wolverhampton","700770","Adt Fire And Security PLC","37270398-02","211.49","Services - Security","130240880","25/01/2019","Maintenance Programme","Centralised R&M","R4405"
"Wolverhampton City Council","http://opendatacommunities.org/id/metropolitan-district-council/wolverhampton","700770","Adt Fire And Security PLC","39970955-02","58.00","Services - Security","130234222","25/01/2019","Maintenance Programme","Centralised R&M","R4405"
"Wolverhampton City Council","http://opendatacommunities.org/id/metropolitan-district-council/wolverhampton","700770","Adt Fire And Security PLC","39977135-02","188.00","Services - Security","130234895","25/01/2019","Maintenance Programme","Centralised R&M","R4405"
"Wolverhampton City Council","http://opendatacommunities.org/id/metropolitan-district-council/wolverhampton","700770","Adt Fire And Security PLC","40212739-02","334.28","Services - Security","130236741","25/01/2019","Maintenance Programme","Centralised R&M","R4405"
"Wolverhampton City Council","http://opendatacommunities.org/id/metropolitan-district-council/wolverhampton","700770","Adt Fire And Security PLC","39009599-02","8,692.00","Equipment - R & M","130230558","04/01/2019","Local Economy","Community Recreation Community Centre","R4003"
"Wolverhampton City Council","http://opendatacommunities.org/id/metropolitan-district-council/wolverhampton","700770","Adt Fire And Security PLC","38510222-02","1,460.00","Construction and Conversion","130239955","09/01/2019","-","Development of Cultural Estate","C1100"
"Wolverhampton City Council","http://opendatacommunities.org/id/metropolitan-district-council/wolverhampton","700770","Adt Fire And Security PLC","39985519-02","4,900.00","Construction and Conversion","130238536","11/01/2019","-","GF - Leisure Centres Enhancement","C1100"
"Wolverhampton City Council","http://opendatacommunities.org/id/metropolitan-district-council/wolverhampton","700770","Adt Fire And Security PLC","40217780-02","224.00","Services - Security","130237383","02/01/2019","Maintenance Programme","Centralised R&M","R4405"
"Wolverhampton City Council","http://opendatacommunities.org/id/metropolitan-district-council/wolverhampton","700770","Adt Fire And Security PLC","40215282-02","57.84","R&M - Departmental planned (internal)","130237106","02/01/2019","Maintenance Programme","Centralised R&M","R2000"
"Wolverhampton City Council","http://opendatacommunities.org/id/metropolitan-district-council/wolverhampton","700891","Adventure Kit UK Limited","3458","776.00","Equipment - Purchase","130241969","30/01/2019","School Planning & Resources","Towers Outdoor Education Centre","R4000"
"Wolverhampton City Council","http://opendatacommunities.org/id/metropolitan-district-council/wolverhampton","700979","Af Blakemore/Blakemore Foodservice","WCC000425","1,742.91","Provisions (Not for resale)","130238314","16/01/2019","Leisure Services","Bert Williams Leisure Centre Caf�","R4101"
"Wolverhampton City Council","http://opendatacommunities.org/id/metropolitan-district-council/wolverhampton","700979","Af Blakemore/Blakemore Foodservice","6140754","50.95","Provisions (Not for resale)","130240466","16/01/2019","Older People Provider Services","Blakenhall Resource Centre","R4101"
"Wolverhampton City Council","http://opendatacommunities.org/id/metropolitan-district-council/wolverhampton","700979","Af Blakemore/Blakemore Foodservice","WCC000456","1,218.85","Provisions (Not for resale)","130239832","16/01/2019","Leisure Services","Bert Williams Leisure Centre Caf�","R4101"
"Wolverhampton City Council","http://opendatacommunities.org/id/metropolitan-district-council/wolverhampton","700979","Af Blakemore/Blakemore Foodservice","WCC000456","524.06","Provisions (Not for resale)","130239832","16/01/2019","Leisure Services","Bert Williams Leisure Centre Caf�","R4101"
"Wolverhampton City Council","http://opendatacommunities.org/id/metropolitan-district-council/wolverhampton","700979","Af Blakemore/Blakemore Foodservice","WCC000460","1,411.01","Provisions (Resale)","130239170","23/01/2019","Catering","Civic Centre Catering","R4102"
"Wolverhampton City Council","http://opendatacommunities.org/id/metropolitan-district-council/wolverhampton","700979","Af Blakemore/Blakemore Foodservice","WCC000458","69,747.72","Provisions (Resale)","130240881","23/01/2019","Catering","Education Catering - General Overheads","R4102"
"Wolverhampton City Council","http://opendatacommunities.org/id/metropolitan-district-council/wolverhampton","700979","Af Blakemore/Blakemore Foodservice","WCC000461","4,248.28","Provisions (Resale)","130240882","23/01/2019","Catering","Civic Centre Catering","R4102"
"Wolverhampton City Council","http://opendatacommunities.org/id/metropolitan-district-council/wolverhampton","700979","Af Blakemore/Blakemore Foodservice","WCC000449","62.85","Provisions (Not for resale)","130234225","02/01/2019","Leisure Services","WV Active Catering","R4101"
"Wolverhampton City Council","http://opendatacommunities.org/id/metropolitan-district-council/wolverhampton","701155","Aidapt Bathrooms Limited","382859","99.00","Equipment - Purchase","130241971","30/01/2019","Older People Provider Services","ILS Stores","R4000"
"Wolverhampton City Council","http://opendatacommunities.org/id/metropolitan-district-council/wolverhampton","701155","Aidapt Bathrooms Limited","382859","1,175.00","Equipment - Purchase","130241971","30/01/2019","Older People Provider Services","ILS Stores","R4000"
"Wolverhampton City Council","http://opendatacommunities.org/id/metropolitan-district-council/wolverhampton","701243","Airey Consultancy Service Limited","N11020","537.61","Services - Fees and Charges","130242102","30/01/2019","Revenues & Benefits","Revenues","R4401"
"Wolverhampton City Council","http://opendatacommunities.org/id/metropolitan-district-council/wolverhampton","701243","Airey Consultancy Service Limited","S09754","1,175.00","Use of Leisure Facilities","130242101","30/01/2019","Revenues & Benefits","Revenues","R4410"
"Wolverhampton City Council","http://opendatacommunities.org/id/metropolitan-district-council/wolverhampton","701265","Airport Express West Midlands Limited","1804","1,200.00","Client Transport","130240043","16/01/2019","Special Educational Needs","Secondary- Transport","R3042"
"Wolverhampton City Council","http://opendatacommunities.org/id/metropolitan-district-council/wolverhampton","701382","Alarm","28626","360.00","Subscriptions","130239678","30/01/2019","Audit Services","General","R4701"
"Wolverhampton City Council","http://opendatacommunities.org/id/metropolitan-district-council/wolverhampton","701382","Alarm","28626","180.00","Subscriptions","130239678","30/01/2019","Audit Services","Audit Services","R4701"
"Wolverhampton City Council","http://opendatacommunities.org/id/metropolitan-district-council/wolverhampton","701393","Aldersley Church Early Learning Committee","NEF Spring 2019 INST 1","10,591.43","TPP - Private Nursery Education Funding","190553185","23/01/2019","Early Years","Early Years Universal Entitlement for 3 and 4 Year Olds","R5035"
"Wolverhampton City Council","http://opendatacommunities.org/id/metropolitan-district-council/wolverhampton","701393","Aldersley Church Early Learning Committee","TFT Spring 2019 Inst 1","3,433.25","TPP - Private Nursery Education Funding","190553192","23/01/2019","Early Years","Early Years Entitlement Funding for Disadvantaged 2 Year Olds","R5035"
"Wolverhampton City Council","http://opendatacommunities.org/id/metropolitan-district-council/wolverhampton","701398","Alec Tiranti Limited","T  297625","11.89","Equipment - Purchase","130238819","09/01/2019","Adult Education","Access & FE","R4000"
"Wolverhampton City Council","http://opendatacommunities.org/id/metropolitan-district-council/wolverhampton","701398","Alec Tiranti Limited","T  297625","7.00","Equipment - Purchase","130238819","09/01/2019","Adult Education","Access & FE","R4000"
"Wolverhampton City Council","http://opendatacommunities.org/id/metropolitan-district-council/wolverhampton","701398","Alec Tiranti Limited","T 297609","70.74","Equipment - Purchase","130238820","11/01/2019","Adult Education","Access & FE","R4000"
"Wolverhampton City Council","http://opendatacommunities.org/id/metropolitan-district-council/wolverhampton","701398","Alec Tiranti Limited","T 297609","7.00","Comms - Postage","130238820","11/01/2019","Adult Education","Access & FE","R4503"
"Wolverhampton City Council","http://opendatacommunities.org/id/metropolitan-district-council/wolverhampton","701417","All Saints Action Network Limited","112390","626.25","Room Hire","130239956","16/01/2019","Children & Young People In Care","RAA - Regional Adoption Agency","R2201"
"Wolverhampton City Council","http://opendatacommunities.org/id/metropolitan-district-council/wolverhampton","701417","All Saints Action Network Limited","TFT Spring 2019 Inst 1","10,186.56","TPP - Private Nursery Education Funding","190553192","23/01/2019","Early Years","Early Years Entitlement Funding for Disadvantaged 2 Year Olds","R5035"
"Wolverhampton City Council","http://opendatacommunities.org/id/metropolitan-district-council/wolverhampton","701417","All Saints Action Network Limited","NEF Spring 2019 INST 1","18,819.00","TPP - Private Nursery Education Funding","190553185","23/01/2019","Early Years","Early Years Universal Entitlement for 3 and 4 Year Olds","R5035"
"Wolverhampton City Council","http://opendatacommunities.org/id/metropolitan-district-council/wolverhampton","701437","Allsorts Office Supplies Limited","710020","309.00","Equipment - Purchase","130241635","30/01/2019","Strengthening Families","EI Area 1- Eastfield","R4000"
"Wolverhampton City Council","http://opendatacommunities.org/id/metropolitan-district-council/wolverhampton","701437","Allsorts Office Supplies Limited","709745","69.58","Furniture","130233443","02/01/2019","Bereavement Services","Cemeteries","R4004"
"Wolverhampton City Council","http://opendatacommunities.org/id/metropolitan-district-council/wolverhampton","701439","Allstar Business Solutions Limited","E2010597138","34.17","Petrol","190545465","02/01/2019","Fleet Services","Fleet Management","R3000"
"Wolverhampton City Council","http://opendatacommunities.org/id/metropolitan-district-council/wolverhampton","701439","Allstar Business Solutions Limited","E2010597138","913.44","Petrol","190545465","02/01/2019","Fleet Services","Fleet Management","R3000"
"Wolverhampton City Council","http://opendatacommunities.org/id/metropolitan-district-council/wolverhampton","701439","Allstar Business Solutions Limited","E2010535326","1.65","Petrol","190545464","02/01/2019","Fleet Services","Fleet Management","R3000"
"Wolverhampton City Council","http://opendatacommunities.org/id/metropolitan-district-council/wolverhampton","701439","Allstar Business Solutions Limited","E2010535326","1.65","Petrol","190545464","02/01/2019","Fleet Services","Fleet Management","R3000"
"Wolverhampton City Council","http://opendatacommunities.org/id/metropolitan-district-council/wolverhampton","701439","Allstar Business Solutions Limited","E2010535326","89.28","Petrol","190545464","02/01/2019","Fleet Services","Fleet Management","R3000"
"Wolverhampton City Council","http://opendatacommunities.org/id/metropolitan-district-council/wolverhampton","701439","Allstar Business Solutions Limited","E2010535326","62.16","Petrol","190545464","02/01/2019","Fleet Services","Fleet Management","R3000"
"Wolverhampton City Council","http://opendatacommunities.org/id/metropolitan-district-council/wolverhampton","701439","Allstar Business Solutions Limited","E2010535326","992.44","Petrol","190545464","02/01/2019","Fleet Services","Fleet Management","R3000"
"Wolverhampton City Council","http://opendatacommunities.org/id/metropolitan-district-council/wolverhampton","701439","Allstar Business Solutions Limited","E2010648819","253.93","Petrol","190551218","16/01/2019","Fleet Services","Fleet Management","R3000"
"Wolverhampton City Council","http://opendatacommunities.org/id/metropolitan-district-council/wolverhampton","701439","Allstar Business Solutions Limited","E2010648819","76.53","Petrol","190551218","16/01/2019","Fleet Services","Fleet Management","R3000"
"Wolverhampton City Council","http://opendatacommunities.org/id/metropolitan-district-council/wolverhampton","701439","Allstar Business Solutions Limited","E2010707345","1.65","Petrol","190553898","23/01/2019","Fleet Services","Fleet Management","R3000"
"Wolverhampton City Council","http://opendatacommunities.org/id/metropolitan-district-council/wolverhampton","701439","Allstar Business Solutions Limited","E2010707345","133.59","Petrol","190553898","23/01/2019","Fleet Services","Fleet Management","R3000"
"Wolverhampton City Council","http://opendatacommunities.org/id/metropolitan-district-council/wolverhampton","701439","Allstar Business Solutions Limited","E2010707345","40.00","Petrol","190553898","23/01/2019","Fleet Services","Fleet Management","R3000"
"Wolverhampton City Council","http://opendatacommunities.org/id/metropolitan-district-council/wolverhampton","701439","Allstar Business Solutions Limited","E2010708372","99.92","Petrol","190553899","23/01/2019","Fleet Services","Fleet Management","R3000"
"Wolverhampton City Council","http://opendatacommunities.org/id/metropolitan-district-council/wolverhampton","701448","Alphatec 2000 Limited","9599","120.56","Equipment - R & M","130237805","04/01/2019","ICTS","Document Centre - General","R4003"
"Wolverhampton City Council","http://opendatacommunities.org/id/metropolitan-district-council/wolverhampton","701509","Angel Springs Limited (Waterlogic)","4427390","19.44","Provisions (Not for resale)","130237983","16/01/2019","Governance Services","Scrutiny","R4101"
"Wolverhampton City Council","http://opendatacommunities.org/id/metropolitan-district-council/wolverhampton","701509","Angel Springs Limited (Waterlogic)","4535331","168.49","Provisions (Not for resale)","130237984","16/01/2019","Governance Services","Scrutiny","R4101"
"Wolverhampton City Council","http://opendatacommunities.org/id/metropolitan-district-council/wolverhampton","701509","Angel Springs Limited (Waterlogic)","4695882","16.20","Provisions (Not for resale)","130240615","16/01/2019","School Planning & Resources","Education Data Services","R4101"
"Wolverhampton City Council","http://opendatacommunities.org/id/metropolitan-district-council/wolverhampton","701509","Angel Springs Limited (Waterlogic)","4747401","15.00","Provisions (Not for resale)","130241111","25/01/2019","Strengthening Families","EI Area 7 - Low Hill","R4101"
"Wolverhampton City Council","http://opendatacommunities.org/id/metropolitan-district-council/wolverhampton","701509","Angel Springs Limited (Waterlogic)","4588305","10.30","Provisions (Not for resale)","130239303","04/01/2019","Facilities Management","Culwell Street Depot","R4101"
"Wolverhampton City Council","http://opendatacommunities.org/id/metropolitan-district-council/wolverhampton","701509","Angel Springs Limited (Waterlogic)","4747404","40.62","Provisions (Not for resale)","130240467","25/01/2019","School Planning & Resources","Education Data Services","R4101"
"Wolverhampton City Council","http://opendatacommunities.org/id/metropolitan-district-council/wolverhampton","701509","Angel Springs Limited (Waterlogic)","4642401","15.64","Provisions (Not for resale)","130239305","09/01/2019","Facilities Management","Culwell Street Depot","R4101"
"Wolverhampton City Council","http://opendatacommunities.org/id/metropolitan-district-council/wolverhampton","701509","Angel Springs Limited (Waterlogic)","4588307","15.64","Provisions (Not for resale)","130239304","09/01/2019","Facilities Management","Culwell Street Depot","R4101"
"Wolverhampton City Council","http://opendatacommunities.org/id/metropolitan-district-council/wolverhampton","701509","Angel Springs Limited (Waterlogic)","4695877","15.00","Provisions (Not for resale)","130241110","18/01/2019","Strengthening Families","EI Area 7 - Low Hill","R4101"
"Wolverhampton City Council","http://opendatacommunities.org/id/metropolitan-district-council/wolverhampton","701509","Angel Springs Limited (Waterlogic)","4479546","16.20","Provisions (Not for resale)","130239079","11/01/2019","Governance Services","Scrutiny","R4101"
"Wolverhampton City Council","http://opendatacommunities.org/id/metropolitan-district-council/wolverhampton","701509","Angel Springs Limited (Waterlogic)","4588271","10.30","Provisions (Not for resale)","130239080","02/01/2019","Headstart","Headstart Phase 3","R4101"
"Wolverhampton City Council","http://opendatacommunities.org/id/metropolitan-district-council/wolverhampton","701512","Anglia Dna Services Limited","8300","212.00","Services - Professional Fees","130236164","18/01/2019","Legal Services","Centralised External Legal Costs","R4400"
"Wolverhampton City Council","http://opendatacommunities.org/id/metropolitan-district-council/wolverhampton","701512","Anglia Dna Services Limited","8578","444.00","Services - Professional Fees","130238746","02/01/2019","Legal Services","Centralised External Legal Costs","R4400"
"Wolverhampton City Council","http://opendatacommunities.org/id/metropolitan-district-council/wolverhampton","701512","Anglia Dna Services Limited","8995","148.00","Services - Professional Fees","130241112","30/01/2019","Legal Services","Centralised External Legal Costs","R4400"
"Wolverhampton City Council","http://opendatacommunities.org/id/metropolitan-district-council/wolverhampton","701512","Anglia Dna Services Limited","8813","374.00","Services - Professional Fees","130241636","25/01/2019","Legal Services","Centralised External Legal Costs","R4400"
"Wolverhampton City Council","http://opendatacommunities.org/id/metropolitan-district-council/wolverhampton","701512","Anglia Dna Services Limited","8844","141.34","Services - Professional Fees","130240369","30/01/2019","Legal Services","Centralised External Legal Costs","R4400"
"Wolverhampton City Council","http://opendatacommunities.org/id/metropolitan-district-council/wolverhampton","701512","Anglia Dna Services Limited","8272","148.00","Services - Professional Fees","130238331","04/01/2019","Legal Services","Centralised External Legal Costs","R4400"
"Wolverhampton City Council","http://opendatacommunities.org/id/metropolitan-district-council/wolverhampton","701512","Anglia Dna Services Limited","8432","524.00","Services - Professional Fees","130240178","16/01/2019","Children & Young People In Care","Looked After Team 1","R4400"
"Wolverhampton City Council","http://opendatacommunities.org/id/metropolitan-district-council/wolverhampton","701525","Ann Arbor Publishers Limited","249573","190.00","Equipment - Purchase","130238332","16/01/2019","Inclusion Support","Inclusion Support","R4000"
"Wolverhampton City Council","http://opendatacommunities.org/id/metropolitan-district-council/wolverhampton","701525","Ann Arbor Publishers Limited","248738","2,136.00","Equipment - Purchase","130239173","04/01/2019","Inclusion Support","Inclusion Support","R4000"
"Wolverhampton City Council","http://opendatacommunities.org/id/metropolitan-district-council/wolverhampton","701534","Antalis Limited","8258043","390.00","Stationery","130239081","18/01/2019","ICTS","Document Centre - General","R4308"
"Wolverhampton City Council","http://opendatacommunities.org/id/metropolitan-district-council/wolverhampton","701534","Antalis Limited","8258043","442.41","Stationery","130239081","18/01/2019","ICTS","Document Centre - General","R4308"
"Wolverhampton City Council","http://opendatacommunities.org/id/metropolitan-district-council/wolverhampton","701545","Apcoa Parking (UK) Limited","271771","16,834.17","TPP - Traffic Management","130238099","09/01/2019","Parking Services","Parking Enforcement","R5050"
"Wolverhampton City Council","http://opendatacommunities.org/id/metropolitan-district-council/wolverhampton","701545","Apcoa Parking (UK) Limited","271559","51,865.88","TPP - Traffic Management","130237107","11/01/2019","Parking Services","Parking Enforcement","R5050"
"Wolverhampton City Council","http://opendatacommunities.org/id/metropolitan-district-council/wolverhampton","701547","Apetito Limited","9002546088","127.12","Provisions (Resale)","130238100","02/01/2019","Catering","Meals on Wheels","R4102"
"Wolverhampton City Council","http://opendatacommunities.org/id/metropolitan-district-council/wolverhampton","701547","Apetito Limited","9002535065","465.13","Provisions (Resale)","130237626","02/01/2019","Catering","Meals on Wheels","R4102"
"Wolverhampton City Council","http://opendatacommunities.org/id/metropolitan-district-council/wolverhampton","701547","Apetito Limited","9002535065","282.92","Provisions (Resale)","130237626","02/01/2019","Catering","Meals on Wheels","R4102"
"Wolverhampton City Council","http://opendatacommunities.org/id/metropolitan-district-council/wolverhampton","701547","Apetito Limited","9002535065","282.92","Provisions (Resale)","130237626","02/01/2019","Catering","Meals on Wheels","R4102"
"Wolverhampton City Council","http://opendatacommunities.org/id/metropolitan-district-council/wolverhampton","701547","Apetito Limited","9002546089","282.92","Provisions (Resale)","130238101","02/01/2019","Catering","Meals on Wheels","R4102"
"Wolverhampton City Council","http://opendatacommunities.org/id/metropolitan-district-council/wolverhampton","701547","Apetito Limited","9002546089","485.20","Provisions (Resale)","130238101","02/01/2019","Catering","Meals on Wheels","R4102"
"Wolverhampton City Council","http://opendatacommunities.org/id/metropolitan-district-council/wolverhampton","701547","Apetito Limited","9002546089","639.23","Provisions (Resale)","130238101","02/01/2019","Catering","Meals on Wheels","R4102"
"Wolverhampton City Council","http://opendatacommunities.org/id/metropolitan-district-council/wolverhampton","701547","Apetito Limited","9002556384","1,144.15","Provisions (Resale)","130239049","16/01/2019","Catering","Meals on Wheels","R4102"
"Wolverhampton City Council","http://opendatacommunities.org/id/metropolitan-district-council/wolverhampton","701547","Apetito Limited","9002558121","1,171.71","Provisions (Resale)","130239083","16/01/2019","Catering","Meals on Wheels","R4102"
"Wolverhampton City Council","http://opendatacommunities.org/id/metropolitan-district-council/wolverhampton","701547","Apetito Limited","9002558120","1,087.89","Provisions (Resale)","130239082","16/01/2019","Catering","Meals on Wheels","R4102"
"Wolverhampton City Council","http://opendatacommunities.org/id/metropolitan-district-council/wolverhampton","701547","Apetito Limited","9002551697","-127.12","Provisions (Resale)","130238538","09/01/2019","Catering","Meals on Wheels","R4102"
"Wolverhampton City Council","http://opendatacommunities.org/id/metropolitan-district-council/wolverhampton","701547","Apetito Limited","9002548980","447.06","Provisions (Resale)","130238333","09/01/2019","Catering","Meals on Wheels","R4102"
"Wolverhampton City Council","http://opendatacommunities.org/id/metropolitan-district-council/wolverhampton","701547","Apetito Limited","9002548980","922.10","Provisions (Resale)","130238333","09/01/2019","Catering","Meals on Wheels","R4102"
"Wolverhampton City Council","http://opendatacommunities.org/id/metropolitan-district-council/wolverhampton","701547","Apetito Limited","9002553391","119.68","Provisions (Resale)","130238823","09/01/2019","Catering","Meals on Wheels","R4102"
"Wolverhampton City Council","http://opendatacommunities.org/id/metropolitan-district-council/wolverhampton","701547","Apetito Limited","9002566955","1,561.57","Provisions (Resale)","130239504","23/01/2019","Catering","Meals on Wheels","R4102"
"Wolverhampton City Council","http://opendatacommunities.org/id/metropolitan-district-council/wolverhampton","701547","Apetito Limited","9002530704","1,244.11","Provisions (Resale)","130236970","23/01/2019","Catering","Meals on Wheels","R4102"
"Wolverhampton City Council","http://opendatacommunities.org/id/metropolitan-district-council/wolverhampton","701547","Apetito Limited","9002566954","1,392.88","Provisions (Resale)","130239503","23/01/2019","Catering","Meals on Wheels","R4102"
"Wolverhampton City Council","http://opendatacommunities.org/id/metropolitan-district-council/wolverhampton","701547","Apetito Limited","9002553390","38.14","Provisions (Resale)","130238822","09/01/2019","Catering","Meals on Wheels","R4102"
"Wolverhampton City Council","http://opendatacommunities.org/id/metropolitan-district-council/wolverhampton","701547","Apetito Limited","9002553390","127.12","Provisions (Resale)","130238822","09/01/2019","Catering","Meals on Wheels","R4102"
"Wolverhampton City Council","http://opendatacommunities.org/id/metropolitan-district-council/wolverhampton","701547","Apetito Limited","9002553390","1,102.57","Provisions (Resale)","130238822","09/01/2019","Catering","Meals on Wheels","R4102"
"Wolverhampton City Council","http://opendatacommunities.org/id/metropolitan-district-council/wolverhampton","701547","Apetito Limited","9002534965","-28.07","Provisions (Resale)","130237387","09/01/2019","Catering","Meals on Wheels","R4102"
"Wolverhampton City Council","http://opendatacommunities.org/id/metropolitan-district-council/wolverhampton","701547","Apetito Limited","9002553389","464.01","Provisions (Resale)","130238821","09/01/2019","Catering","Meals on Wheels","R4102"
"Wolverhampton City Council","http://opendatacommunities.org/id/metropolitan-district-council/wolverhampton","701547","Apetito Limited","9002573929","1,085.18","Provisions (Resale)","130240370","30/01/2019","Catering","Meals on Wheels","R4102"
"Wolverhampton City Council","http://opendatacommunities.org/id/metropolitan-district-council/wolverhampton","701556","Apollo Distribution Solutions","57850","176.50","Services - Professional Fees","130239174","11/01/2019","Public Service Reform","Coroners Service","R4400"
"Wolverhampton City Council","http://opendatacommunities.org/id/metropolitan-district-council/wolverhampton","701595","Argus Fire Protection Co.Limited","42840","505.00","R&M - Departmental planned (internal)","130239084","16/01/2019","Maintenance Programme","Centralised R&M","R2000"
"Wolverhampton City Council","http://opendatacommunities.org/id/metropolitan-district-council/wolverhampton","701595","Argus Fire Protection Co.Limited","42440","168.00","R&M - Departmental planned (internal)","130235652","11/01/2019","Maintenance Programme","Centralised R&M","R2000"
"Wolverhampton City Council","http://opendatacommunities.org/id/metropolitan-district-council/wolverhampton","701603","Arnold Clark Finance Limited","HI2465796","15.15","Hire of Vehicles","190551547","18/01/2019","Fleet Services","Fleet Management","R3200"
"Wolverhampton City Council","http://opendatacommunities.org/id/metropolitan-district-council/wolverhampton","701603","Arnold Clark Finance Limited","HI2465796","31.04","Hire of Vehicles","190551547","18/01/2019","Fleet Services","Fleet Management","R3200"
"Wolverhampton City Council","http://opendatacommunities.org/id/metropolitan-district-council/wolverhampton","701603","Arnold Clark Finance Limited","HI2469328","51.39","Hire of Vehicles","190551549","18/01/2019","Fleet Services","Fleet Management","R3200"
"Wolverhampton City Council","http://opendatacommunities.org/id/metropolitan-district-council/wolverhampton","701603","Arnold Clark Finance Limited","HI2474447","111.92","Hire of Vehicles","190551560","18/01/2019","Fleet Services","Fleet Management","R3200"
"Wolverhampton City Council","http://opendatacommunities.org/id/metropolitan-district-council/wolverhampton","701603","Arnold Clark Finance Limited","HI2470464","70.13","Hire of Vehicles","190551550","18/01/2019","Fleet Services","Fleet Management","R3200"
"Wolverhampton City Council","http://opendatacommunities.org/id/metropolitan-district-council/wolverhampton","701603","Arnold Clark Finance Limited","HI2472517","100.80","Hire of Vehicles","190551555","18/01/2019","Fleet Services","Fleet Management","R3200"
"Wolverhampton City Council","http://opendatacommunities.org/id/metropolitan-district-council/wolverhampton","701603","Arnold Clark Finance Limited","HI2465809","18.12","Hire of Vehicles","190551548","18/01/2019","Fleet Services","Fleet Management","R3200"
"Wolverhampton City Council","http://opendatacommunities.org/id/metropolitan-district-council/wolverhampton","701603","Arnold Clark Finance Limited","HI2465809","37.35","Hire of Vehicles","190551548","18/01/2019","Fleet Services","Fleet Management","R3200"
"Wolverhampton City Council","http://opendatacommunities.org/id/metropolitan-district-council/wolverhampton","701603","Arnold Clark Finance Limited","HI2471896","81.25","Hire of Vehicles","190551552","18/01/2019","Fleet Services","Fleet Management","R3200"
"Wolverhampton City Council","http://opendatacommunities.org/id/metropolitan-district-council/wolverhampton","701603","Arnold Clark Finance Limited","HI2471898","18.12","Hire of Vehicles","190551553","18/01/2019","Fleet Services","Fleet Management","R3200"
"Wolverhampton City Council","http://opendatacommunities.org/id/metropolitan-district-council/wolverhampton","701603","Arnold Clark Finance Limited","HI2471895","81.25","Hire of Vehicles","190551551","18/01/2019","Fleet Services","Fleet Management","R3200"
"Wolverhampton City Council","http://opendatacommunities.org/id/metropolitan-district-council/wolverhampton","701603","Arnold Clark Finance Limited","HI2463335","18.12","Hire of Vehicles","190551546","18/01/2019","Fleet Services","Fleet Management","R3200"
"Wolverhampton City Council","http://opendatacommunities.org/id/metropolitan-district-council/wolverhampton","701603","Arnold Clark Finance Limited","HI2463335","25.95","Hire of Vehicles","190551546","18/01/2019","Fleet Services","Fleet Management","R3200"
"Wolverhampton City Council","http://opendatacommunities.org/id/metropolitan-district-council/wolverhampton","701603","Arnold Clark Finance Limited","HI2473880","36.24","Hire of Vehicles","190551556","18/01/2019","Fleet Services","Fleet Management","R3200"
"Wolverhampton City Council","http://opendatacommunities.org/id/metropolitan-district-council/wolverhampton","701603","Arnold Clark Finance Limited","HI2472228","46.50","Hire of Vehicles","190551554","18/01/2019","Fleet Services","Fleet Management","R3200"
"Wolverhampton City Council","http://opendatacommunities.org/id/metropolitan-district-council/wolverhampton","701603","Arnold Clark Finance Limited","HI2472228","56.78","Hire of Vehicles","190551554","18/01/2019","Fleet Services","Fleet Management","R3200"
"Wolverhampton City Council","http://opendatacommunities.org/id/metropolitan-district-council/wolverhampton","701603","Arnold Clark Finance Limited","HI2474364","81.25","Hire of Vehicles","190551559","18/01/2019","Fleet Services","Fleet Management","R3200"
"Wolverhampton City Council","http://opendatacommunities.org/id/metropolitan-district-council/wolverhampton","701603","Arnold Clark Finance Limited","HI2474362","100.80","Hire of Vehicles","190551558","18/01/2019","Fleet Services","Fleet Management","R3200"
"Wolverhampton City Council","http://opendatacommunities.org/id/metropolitan-district-council/wolverhampton","701603","Arnold Clark Finance Limited","HI2473882","23.25","Hire of Vehicles","190551557","18/01/2019","Fleet Services","Fleet Management","R3200"
"Wolverhampton City Council","http://opendatacommunities.org/id/metropolitan-district-council/wolverhampton","701613","Arthur Brett (Catering) Limited","ID1074681","30.21","Provisions (Resale)","130239309","11/01/2019","Older People Provider Services","Blakenhall Resource Centre","R4102"
"Wolverhampton City Council","http://opendatacommunities.org/id/metropolitan-district-council/wolverhampton","701613","Arthur Brett (Catering) Limited","ID1077355","99.28","Provisions (Resale)","130240472","18/01/2019","Visitor Economy","Bantock - Tea Rooms","R4102"
"Wolverhampton City Council","http://opendatacommunities.org/id/metropolitan-district-council/wolverhampton","701613","Arthur Brett (Catering) Limited","ID1056724RE-ISSUE","20.43","Provisions (Resale)","130239306","11/01/2019","Older People Provider Services","Blakenhall Resource Centre","R4102"
"Wolverhampton City Council","http://opendatacommunities.org/id/metropolitan-district-council/wolverhampton","701613","Arthur Brett (Catering) Limited","ID1073752","26.80","Provisions (Resale)","130238334","11/01/2019","Older People Provider Services","Blakenhall Resource Centre","R4102"
"Wolverhampton City Council","http://opendatacommunities.org/id/metropolitan-district-council/wolverhampton","701613","Arthur Brett (Catering) Limited","3011183","1,420.90","Provisions (Resale)","130240468","16/01/2019","Catering","Civic Centre Catering","R4102"
"Wolverhampton City Council","http://opendatacommunities.org/id/metropolitan-district-council/wolverhampton","701613","Arthur Brett (Catering) Limited","ID1077012","15.33","Provisions (Resale)","130240180","16/01/2019","Visitor Economy","Art Gallery Tea Room","R4102"
"Wolverhampton City Council","http://opendatacommunities.org/id/metropolitan-district-council/wolverhampton","701613","Arthur Brett (Catering) Limited","ID1076719","78.47","Provisions (Resale)","130240179","16/01/2019","Visitor Economy","Art Gallery Tea Room","R4102"
"Wolverhampton City Council","http://opendatacommunities.org/id/metropolitan-district-council/wolverhampton","701613","Arthur Brett (Catering) Limited","3112182","62.59","Provisions (Resale)","130241217","23/01/2019","Leisure Services","Bert Williams Leisure Centre Caf�","R4102"
"Wolverhampton City Council","http://opendatacommunities.org/id/metropolitan-district-council/wolverhampton","701613","Arthur Brett (Catering) Limited","CN33734","-3.23","Provisions (Resale)","130241533","25/01/2019","Older People Provider Services","Blakenhall Resource Centre","R4102"
"Wolverhampton City Council","http://opendatacommunities.org/id/metropolitan-district-council/wolverhampton","701613","Arthur Brett (Catering) Limited","ID1079330","107.60","Provisions (Resale)","130241221","25/01/2019","Visitor Economy","Art Gallery Tea Room","R4102"
"Wolverhampton City Council","http://opendatacommunities.org/id/metropolitan-district-council/wolverhampton","701613","Arthur Brett (Catering) Limited","ID1078076","13.50","Provisions (Resale)","130240619","23/01/2019","Visitor Economy","Bantock - Tea Rooms","R4102"
"Wolverhampton City Council","http://opendatacommunities.org/id/metropolitan-district-council/wolverhampton","701613","Arthur Brett (Catering) Limited","3112184","963.49","Provisions (Resale)","130241219","23/01/2019","Catering","Civic Centre Catering","R4102"
"Wolverhampton City Council","http://opendatacommunities.org/id/metropolitan-district-council/wolverhampton","701613","Arthur Brett (Catering) Limited","ID1077858","28.58","Provisions (Resale)","130240474","23/01/2019","Older People Provider Services","Blakenhall Resource Centre","R4102"
"Wolverhampton City Council","http://opendatacommunities.org/id/metropolitan-district-council/wolverhampton","701613","Arthur Brett (Catering) Limited","ID1065845","33.26","Provisions (Resale)","130240471","16/01/2019","Older People Provider Services","Blakenhall Resource Centre","R4102"
"Wolverhampton City Council","http://opendatacommunities.org/id/metropolitan-district-council/wolverhampton","701613","Arthur Brett (Catering) Limited","CN35907","-2.97","Provisions (Resale)","130239957","16/01/2019","Visitor Economy","Art Gallery Tea Room","R4102"
"Wolverhampton City Council","http://opendatacommunities.org/id/metropolitan-district-council/wolverhampton","701613","Arthur Brett (Catering) Limited","3011184","175.64","Provisions (Resale)","130240469","16/01/2019","Catering","Meals on Wheels","R4102"
"Wolverhampton City Council","http://opendatacommunities.org/id/metropolitan-district-council/wolverhampton","701613","Arthur Brett (Catering) Limited","ID1076376","88.77","Provisions (Resale)","130239958","16/01/2019","Visitor Economy","Bantock - Tea Rooms","R4102"
"Wolverhampton City Council","http://opendatacommunities.org/id/metropolitan-district-council/wolverhampton","701613","Arthur Brett (Catering) Limited","ID1076580","15.69","Provisions (Resale)","130239959","16/01/2019","Catering","West Park Tea Room","R4102"
"Wolverhampton City Council","http://opendatacommunities.org/id/metropolitan-district-council/wolverhampton","701613","Arthur Brett (Catering) Limited","3011185","43,830.14","Provisions (Resale)","130240470","16/01/2019","Catering","Education Catering - General Overheads","R4102"
"Wolverhampton City Council","http://opendatacommunities.org/id/metropolitan-district-council/wolverhampton","701613","Arthur Brett (Catering) Limited","ID1079436","116.90","Provisions (Resale)","130241222","25/01/2019","Visitor Economy","Bantock - Tea Rooms","R4102"
"Wolverhampton City Council","http://opendatacommunities.org/id/metropolitan-district-council/wolverhampton","701613","Arthur Brett (Catering) Limited","3112181","26.85","Provisions (Resale)","130241216","23/01/2019","Leisure Services","WV Active Catering","R4102"
"Wolverhampton City Council","http://opendatacommunities.org/id/metropolitan-district-council/wolverhampton","701613","Arthur Brett (Catering) Limited","3112185","152.27","Provisions (Resale)","130241220","23/01/2019","Catering","Meals on Wheels","R4102"
"Wolverhampton City Council","http://opendatacommunities.org/id/metropolitan-district-council/wolverhampton","701613","Arthur Brett (Catering) Limited","ID1078258","80.08","Provisions (Resale)","130240620","23/01/2019","Visitor Economy","Art Gallery Tea Room","R4102"
"Wolverhampton City Council","http://opendatacommunities.org/id/metropolitan-district-council/wolverhampton","701613","Arthur Brett (Catering) Limited","ID1077967","5.36","Provisions (Resale)","130240618","23/01/2019","Catering","West Park Tea Room","R4102"
"Wolverhampton City Council","http://opendatacommunities.org/id/metropolitan-district-council/wolverhampton","701613","Arthur Brett (Catering) Limited","ID1077823","9.29","Provisions (Resale)","130240473","23/01/2019","Visitor Economy","Art Gallery Tea Room","R4102"
"Wolverhampton City Council","http://opendatacommunities.org/id/metropolitan-district-council/wolverhampton","701613","Arthur Brett (Catering) Limited","ID1078303","132.97","Provisions (Resale)","130240621","23/01/2019","Visitor Economy","Bantock - Tea Rooms","R4102"
"Wolverhampton City Council","http://opendatacommunities.org/id/metropolitan-district-council/wolverhampton","701613","Arthur Brett (Catering) Limited","3112183","28,061.55","Provisions (Resale)","130241218","23/01/2019","Catering","Education Catering - General Overheads","R4102"
"Wolverhampton City Council","http://opendatacommunities.org/id/metropolitan-district-council/wolverhampton","701613","Arthur Brett (Catering) Limited","ID1075264","40.26","Provisions (Resale)","130239311","09/01/2019","Visitor Economy","Art Gallery Tea Room","R4102"
"Wolverhampton City Council","http://opendatacommunities.org/id/metropolitan-district-council/wolverhampton","701613","Arthur Brett (Catering) Limited","ID1073255","35.41","Provisions (Resale)","130239307","04/01/2019","Visitor Economy","Bantock - Tea Rooms","R4102"
"Wolverhampton City Council","http://opendatacommunities.org/id/metropolitan-district-council/wolverhampton","701613","Arthur Brett (Catering) Limited","ID1079948","8.49","Provisions (Resale)","130241534","30/01/2019","Catering","West Park Tea Room","R4102"
"Wolverhampton City Council","http://opendatacommunities.org/id/metropolitan-district-council/wolverhampton","701613","Arthur Brett (Catering) Limited","ID1080649","71.84","Provisions (Resale)","130241638","30/01/2019","Visitor Economy","Bantock - Tea Rooms","R4102"
"Wolverhampton City Council","http://opendatacommunities.org/id/metropolitan-district-council/wolverhampton","701613","Arthur Brett (Catering) Limited","ID1074781","43.73","Provisions (Resale)","130239310","04/01/2019","Visitor Economy","Art Gallery Tea Room","R4102"
"Wolverhampton City Council","http://opendatacommunities.org/id/metropolitan-district-council/wolverhampton","701613","Arthur Brett (Catering) Limited","ID1074503","9.19","Provisions (Resale)","130238339","09/01/2019","Catering","West Park Tea Room","R4102"
"Wolverhampton City Council","http://opendatacommunities.org/id/metropolitan-district-council/wolverhampton","701613","Arthur Brett (Catering) Limited","ID1075805","39.38","Provisions (Resale)","130239507","09/01/2019","Visitor Economy","Bantock - Tea Rooms","R4102"
"Wolverhampton City Council","http://opendatacommunities.org/id/metropolitan-district-council/wolverhampton","701613","Arthur Brett (Catering) Limited","ID1075540","92.19","Provisions (Resale)","130239505","09/01/2019","Visitor Economy","Bantock - Tea Rooms","R4102"
"Wolverhampton City Council","http://opendatacommunities.org/id/metropolitan-district-council/wolverhampton","701613","Arthur Brett (Catering) Limited","ID1071639","39.92","Provisions (Resale)","130237990","09/01/2019","Older People Provider Services","Bradley Lodge Resource Centre","R4102"
"Wolverhampton City Council","http://opendatacommunities.org/id/metropolitan-district-council/wolverhampton","701613","Arthur Brett (Catering) Limited","ID1075200","76.15","Provisions (Resale)","130239085","04/01/2019","Visitor Economy","Bantock - Tea Rooms","R4102"
"Wolverhampton City Council","http://opendatacommunities.org/id/metropolitan-district-council/wolverhampton","701613","Arthur Brett (Catering) Limited","ID1075797","104.06","Provisions (Resale)","130239506","09/01/2019","Visitor Economy","Art Gallery Tea Room","R4102"
"Wolverhampton City Council","http://opendatacommunities.org/id/metropolitan-district-council/wolverhampton","701613","Arthur Brett (Catering) Limited","ID1080591","89.04","Provisions (Resale)","130241637","30/01/2019","Visitor Economy","Art Gallery Tea Room","R4102"
"Wolverhampton City Council","http://opendatacommunities.org/id/metropolitan-district-council/wolverhampton","701613","Arthur Brett (Catering) Limited","3110181","61.58","Provisions (Resale)","130234416","02/01/2019","Leisure Services","WV Active Catering","R4102"
"Wolverhampton City Council","http://opendatacommunities.org/id/metropolitan-district-council/wolverhampton","701613","Arthur Brett (Catering) Limited","3110182","232.92","Provisions (Resale)","130234417","02/01/2019","Leisure Services","Bert Williams Leisure Centre Caf�","R4102"
"Wolverhampton City Council","http://opendatacommunities.org/id/metropolitan-district-council/wolverhampton","701616","Arthur M Griffiths & Son Limited","60","735.08","Construction and Conversion","130241223","25/01/2019","-","Primary Expansion Programme","C1100"
"Wolverhampton City Council","http://opendatacommunities.org/id/metropolitan-district-council/wolverhampton","701650","Ashtead Plant Hire Company Limited","178838991","436.59","Equipment - Hire","130240372","16/01/2019","Visitor Economy","Bonfire","R4001"
"Wolverhampton City Council","http://opendatacommunities.org/id/metropolitan-district-council/wolverhampton","701650","Ashtead Plant Hire Company Limited","17986690","6,080.47","Equipment - Hire","130236973","18/01/2019","Visitor Economy","ALV - Darts & Comedy","R4001"
"Wolverhampton City Council","http://opendatacommunities.org/id/metropolitan-district-council/wolverhampton","701650","Ashtead Plant Hire Company Limited","17782790","1,105.00","Construction and Conversion","130236050","09/01/2019","-","GF - Maintenance of unclassified roads","C1100"
"Wolverhampton City Council","http://opendatacommunities.org/id/metropolitan-district-council/wolverhampton","701650","Ashtead Plant Hire Company Limited","17889491","18.19","Equipment - Hire","130234689","04/01/2019","Visitor Economy","Bonfire","R4001"
"Wolverhampton City Council","http://opendatacommunities.org/id/metropolitan-district-council/wolverhampton","701650","Ashtead Plant Hire Company Limited","17889492","66.04","Equipment - Hire","130234690","04/01/2019","Visitor Economy","Bonfire","R4001"
"Wolverhampton City Council","http://opendatacommunities.org/id/metropolitan-district-council/wolverhampton","701652","Ashton Engineering Co. Limited","5906","549.43","Equipment - R & M","190553895","23/01/2019","Fleet Services","Fleet Management","R4003"
"Wolverhampton City Council","http://opendatacommunities.org/id/metropolitan-district-council/wolverhampton","701652","Ashton Engineering Co. Limited","5884","64.00","Equipment - Purchase","190548906","11/01/2019","Fleet Services","Fleet Management","R4000"
"Wolverhampton City Council","http://opendatacommunities.org/id/metropolitan-district-council/wolverhampton","701652","Ashton Engineering Co. Limited","5889","114.00","Equipment - Purchase","190548907","11/01/2019","Fleet Services","Fleet Management","R4000"
"Wolverhampton City Council","http://opendatacommunities.org/id/metropolitan-district-council/wolverhampton","701656","Askews & Holts Library Services Limited","5919781","1.34","Books","130238550","11/01/2019","Local Economy","Global Budgets","R4309"
"Wolverhampton City Council","http://opendatacommunities.org/id/metropolitan-district-council/wolverhampton","701656","Askews & Holts Library Services Limited","5919781","0.02","Books","130238550","11/01/2019","Local Economy","Global Budgets","R4309"
"Wolverhampton City Council","http://opendatacommunities.org/id/metropolitan-district-council/wolverhampton","701656","Askews & Holts Library Services Limited","5919781","0.02","Books","130238550","11/01/2019","Local Economy","Global Budgets","R4309"
"Wolverhampton City Council","http://opendatacommunities.org/id/metropolitan-district-council/wolverhampton","701656","Askews & Holts Library Services Limited","5919777","5.07","Books","130238546","11/01/2019","Local Economy","Global Budgets","R4309"
"Wolverhampton City Council","http://opendatacommunities.org/id/metropolitan-district-council/wolverhampton","701656","Askews & Holts Library Services Limited","5919779","22.60","Books","130238548","11/01/2019","Local Economy","Global Budgets","R4309"
"Wolverhampton City Council","http://opendatacommunities.org/id/metropolitan-district-council/wolverhampton","701656","Askews & Holts Library Services Limited","5919781","5.08","Books","130238550","11/01/2019","Local Economy","Global Budgets","R4309"
"Wolverhampton City Council","http://opendatacommunities.org/id/metropolitan-district-council/wolverhampton","701656","Askews & Holts Library Services Limited","5919781","26.43","Books","130238550","11/01/2019","Local Economy","Global Budgets","R4309"
"Wolverhampton City Council","http://opendatacommunities.org/id/metropolitan-district-council/wolverhampton","701656","Askews & Holts Library Services Limited","5919786","10.87","Books","130238554","11/01/2019","Local Economy","Global Budgets","R4309"
"Wolverhampton City Council","http://opendatacommunities.org/id/metropolitan-district-council/wolverhampton","701656","Askews & Holts Library Services Limited","5919780","26.51","Books","130238549","11/01/2019","Local Economy","Global Budgets","R4309"
"Wolverhampton City Council","http://opendatacommunities.org/id/metropolitan-district-council/wolverhampton","701656","Askews & Holts Library Services Limited","5919775","21.59","Books","130238544","11/01/2019","Local Economy","Global Budgets","R4309"
"Wolverhampton City Council","http://opendatacommunities.org/id/metropolitan-district-council/wolverhampton","701656","Askews & Holts Library Services Limited","5919769","17.10","Books","130238540","11/01/2019","Local Economy","Global Budgets","R4309"
"Wolverhampton City Council","http://opendatacommunities.org/id/metropolitan-district-council/wolverhampton","701656","Askews & Holts Library Services Limited","5919784","9.71","Books","130238552","11/01/2019","Local Economy","Global Budgets","R4309"
"Wolverhampton City Council","http://opendatacommunities.org/id/metropolitan-district-council/wolverhampton","701656","Askews & Holts Library Services Limited","5888663","12.04","Books","130235500","02/01/2019","Local Economy","Global Budgets","R4309"
"Wolverhampton City Council","http://opendatacommunities.org/id/metropolitan-district-council/wolverhampton","701656","Askews & Holts Library Services Limited","5875773","15.79","Books","130234126","02/01/2019","Local Economy","Global Budgets","R4309"
"Wolverhampton City Council","http://opendatacommunities.org/id/metropolitan-district-council/wolverhampton","701656","Askews & Holts Library Services Limited","5888678","14.94","Books","130235512","09/01/2019","Local Economy","Global Budgets","R4309"
"Wolverhampton City Council","http://opendatacommunities.org/id/metropolitan-district-council/wolverhampton","701656","Askews & Holts Library Services Limited","5888673","45.09","Books","130235507","09/01/2019","Local Economy","Global Budgets","R4309"
"Wolverhampton City Council","http://opendatacommunities.org/id/metropolitan-district-council/wolverhampton","701656","Askews & Holts Library Services Limited","5888670","22.76","Books","130235506","09/01/2019","Local Economy","Global Budgets","R4309"
"Wolverhampton City Council","http://opendatacommunities.org/id/metropolitan-district-council/wolverhampton","701656","Askews & Holts Library Services Limited","5888681","5.07","Books","130235513","09/01/2019","Local Economy","Global Budgets","R4309"
"Wolverhampton City Council","http://opendatacommunities.org/id/metropolitan-district-council/wolverhampton","701656","Askews & Holts Library Services Limited","5911609","37.45","Books","130239313","09/01/2019","Local Economy","Global Budgets","R4309"
"Wolverhampton City Council","http://opendatacommunities.org/id/metropolitan-district-council/wolverhampton","701656","Askews & Holts Library Services Limited","162099E","-3.26","Books","130239312","09/01/2019","Local Economy","Global Budgets","R4309"
"Wolverhampton City Council","http://opendatacommunities.org/id/metropolitan-district-council/wolverhampton","701656","Askews & Holts Library Services Limited","5924802","265.83","Books","130239175","18/01/2019","Local Economy","Global Budgets","R4309"
"Wolverhampton City Council","http://opendatacommunities.org/id/metropolitan-district-council/wolverhampton","701656","Askews & Holts Library Services Limited","5919774","5.07","Books","130239089","11/01/2019","Local Economy","Global Budgets","R4309"
"Wolverhampton City Council","http://opendatacommunities.org/id/metropolitan-district-council/wolverhampton","701656","Askews & Holts Library Services Limited","5919773","10.14","Books","130238543","11/01/2019","Local Economy","Global Budgets","R4309"
"Wolverhampton City Council","http://opendatacommunities.org/id/metropolitan-district-council/wolverhampton","701656","Askews & Holts Library Services Limited","5919776","20.58","Books","130238545","11/01/2019","Local Economy","Global Budgets","R4309"
"Wolverhampton City Council","http://opendatacommunities.org/id/metropolitan-district-council/wolverhampton","701656","Askews & Holts Library Services Limited","5919772","38.39","Books","130238542","11/01/2019","Local Economy","Global Budgets","R4309"
"Wolverhampton City Council","http://opendatacommunities.org/id/metropolitan-district-council/wolverhampton","701656","Askews & Holts Library Services Limited","5921104","204.05","Books","130239680","11/01/2019","Local Economy","Global Budgets","R4309"
"Wolverhampton City Council","http://opendatacommunities.org/id/metropolitan-district-council/wolverhampton","701656","Askews & Holts Library Services Limited","5919770","9.13","Books","130238541","11/01/2019","Local Economy","Global Budgets","R4309"
"Wolverhampton City Council","http://opendatacommunities.org/id/metropolitan-district-council/wolverhampton","701656","Askews & Holts Library Services Limited","5919778","23.91","Books","130238547","11/01/2019","Local Economy","Global Budgets","R4309"
"Wolverhampton City Council","http://opendatacommunities.org/id/metropolitan-district-council/wolverhampton","701656","Askews & Holts Library Services Limited","5919785","114.46","Books","130238553","11/01/2019","Local Economy","Global Budgets","R4309"
"Wolverhampton City Council","http://opendatacommunities.org/id/metropolitan-district-council/wolverhampton","701656","Askews & Holts Library Services Limited","5919782","17.53","Books","130238551","11/01/2019","Local Economy","Global Budgets","R4309"
"Wolverhampton City Council","http://opendatacommunities.org/id/metropolitan-district-council/wolverhampton","701656","Askews & Holts Library Services Limited","5896009","18.69","Books","130236170","23/01/2019","Local Economy","Global Budgets","R4309"
"Wolverhampton City Council","http://opendatacommunities.org/id/metropolitan-district-council/wolverhampton","701656","Askews & Holts Library Services Limited","5896081","25.65","Books","130236063","23/01/2019","Local Economy","Global Budgets","R4309"
"Wolverhampton City Council","http://opendatacommunities.org/id/metropolitan-district-council/wolverhampton","701656","Askews & Holts Library Services Limited","5896008","50.14","Books","130236169","23/01/2019","Local Economy","Global Budgets","R4309"
"Wolverhampton City Council","http://opendatacommunities.org/id/metropolitan-district-council/wolverhampton","701656","Askews & Holts Library Services Limited","5896013","100.98","Books","130236761","23/01/2019","Local Economy","Global Budgets","R4309"
"Wolverhampton City Council","http://opendatacommunities.org/id/metropolitan-district-council/wolverhampton","701656","Askews & Holts Library Services Limited","5896084","25.08","Books","130236066","23/01/2019","Local Economy","Global Budgets","R4309"
"Wolverhampton City Council","http://opendatacommunities.org/id/metropolitan-district-council/wolverhampton","701656","Askews & Holts Library Services Limited","5901418","15.36","Books","130236174","23/01/2019","Local Economy","Global Budgets","R4309"
"Wolverhampton City Council","http://opendatacommunities.org/id/metropolitan-district-council/wolverhampton","701656","Askews & Holts Library Services Limited","5896088","53.23","Books","130236172","23/01/2019","Local Economy","Global Budgets","R4309"
"Wolverhampton City Council","http://opendatacommunities.org/id/metropolitan-district-council/wolverhampton","701656","Askews & Holts Library Services Limited","5896014","100.98","Books","130236762","23/01/2019","Local Economy","Global Budgets","R4309"
"Wolverhampton City Council","http://opendatacommunities.org/id/metropolitan-district-council/wolverhampton","701656","Askews & Holts Library Services Limited","5896090","17.11","Books","130236173","23/01/2019","Local Economy","Global Budgets","R4309"
"Wolverhampton City Council","http://opendatacommunities.org/id/metropolitan-district-council/wolverhampton","701656","Askews & Holts Library Services Limited","5888677","6.23","Books","130235511","09/01/2019","Local Economy","Global Budgets","R4309"
"Wolverhampton City Council","http://opendatacommunities.org/id/metropolitan-district-council/wolverhampton","701656","Askews & Holts Library Services Limited","5888674","29.15","Books","130235508","09/01/2019","Local Economy","Global Budgets","R4309"
"Wolverhampton City Council","http://opendatacommunities.org/id/metropolitan-district-council/wolverhampton","701656","Askews & Holts Library Services Limited","5875765","11.30","Books","130234121","09/01/2019","Local Economy","Global Budgets","R4309"
"Wolverhampton City Council","http://opendatacommunities.org/id/metropolitan-district-council/wolverhampton","701656","Askews & Holts Library Services Limited","5875762","53.64","Books","130234118","09/01/2019","Local Economy","Global Budgets","R4309"
"Wolverhampton City Council","http://opendatacommunities.org/id/metropolitan-district-council/wolverhampton","701656","Askews & Holts Library Services Limited","5883341","17.44","Books","130234129","09/01/2019","Local Economy","Global Budgets","R4309"
"Wolverhampton City Council","http://opendatacommunities.org/id/metropolitan-district-council/wolverhampton","701656","Askews & Holts Library Services Limited","5917321","31.76","Books","130238103","09/01/2019","Local Economy","Global Budgets","R4309"
"Wolverhampton City Council","http://opendatacommunities.org/id/metropolitan-district-council/wolverhampton","701656","Askews & Holts Library Services Limited","5914465","22.76","Books","130237812","04/01/2019","Local Economy","Global Budgets","R4309"
"Wolverhampton City Council","http://opendatacommunities.org/id/metropolitan-district-council/wolverhampton","701656","Askews & Holts Library Services Limited","5914474","63.20","Books","130237819","04/01/2019","Local Economy","Global Budgets","R4309"
"Wolverhampton City Council","http://opendatacommunities.org/id/metropolitan-district-council/wolverhampton","701656","Askews & Holts Library Services Limited","5914466","84.78","Books","130237813","04/01/2019","Local Economy","Global Budgets","R4309"
"Wolverhampton City Council","http://opendatacommunities.org/id/metropolitan-district-council/wolverhampton","701656","Askews & Holts Library Services Limited","5914475","17.69","Books","130237820","04/01/2019","Local Economy","Global Budgets","R4309"
"Wolverhampton City Council","http://opendatacommunities.org/id/metropolitan-district-council/wolverhampton","701656","Askews & Holts Library Services Limited","161641E","-9.13","Books","130239508","04/01/2019","Local Economy","Global Budgets","R4309"
"Wolverhampton City Council","http://opendatacommunities.org/id/metropolitan-district-council/wolverhampton","701656","Askews & Holts Library Services Limited","5875774","293.36","Books","130234127","09/01/2019","Local Economy","Global Budgets","R4309"
"Wolverhampton City Council","http://opendatacommunities.org/id/metropolitan-district-council/wolverhampton","701656","Askews & Holts Library Services Limited","5875766","10.14","Books","130234532","09/01/2019","Local Economy","Global Budgets","R4309"
"Wolverhampton City Council","http://opendatacommunities.org/id/metropolitan-district-council/wolverhampton","701656","Askews & Holts Library Services Limited","5914477","325.44","Books","130237822","04/01/2019","Local Economy","Global Budgets","R4309"
"Wolverhampton City Council","http://opendatacommunities.org/id/metropolitan-district-council/wolverhampton","701656","Askews & Holts Library Services Limited","5914463","62.91","Books","130237810","04/01/2019","Local Economy","Global Budgets","R4309"
"Wolverhampton City Council","http://opendatacommunities.org/id/metropolitan-district-council/wolverhampton","701656","Askews & Holts Library Services Limited","5914467","27.25","Books","130237814","04/01/2019","Local Economy","Global Budgets","R4309"
"Wolverhampton City Council","http://opendatacommunities.org/id/metropolitan-district-council/wolverhampton","701656","Askews & Holts Library Services Limited","5914464","82.94","Books","130237811","04/01/2019","Local Economy","Global Budgets","R4309"
"Wolverhampton City Council","http://opendatacommunities.org/id/metropolitan-district-council/wolverhampton","701656","Askews & Holts Library Services Limited","5892161","14.94","Books","130234901","04/01/2019","Local Economy","Global Budgets","R4309"
"Wolverhampton City Council","http://opendatacommunities.org/id/metropolitan-district-council/wolverhampton","701656","Askews & Holts Library Services Limited","5866261","20.74","Books","130233155","09/01/2019","Local Economy","Global Budgets","R4309"
"Wolverhampton City Council","http://opendatacommunities.org/id/metropolitan-district-council/wolverhampton","701656","Askews & Holts Library Services Limited","5892162","14.94","Books","130234706","09/01/2019","Local Economy","Global Budgets","R4309"
"Wolverhampton City Council","http://opendatacommunities.org/id/metropolitan-district-council/wolverhampton","701656","Askews & Holts Library Services Limited","5914469","72.78","Books","130237816","04/01/2019","Local Economy","Global Budgets","R4309"
"Wolverhampton City Council","http://opendatacommunities.org/id/metropolitan-district-council/wolverhampton","701656","Askews & Holts Library Services Limited","5914470","60.18","Books","130237817","04/01/2019","Local Economy","Global Budgets","R4309"
"Wolverhampton City Council","http://opendatacommunities.org/id/metropolitan-district-council/wolverhampton","701656","Askews & Holts Library Services Limited","5914468","11.60","Books","130237815","04/01/2019","Local Economy","Global Budgets","R4309"
"Wolverhampton City Council","http://opendatacommunities.org/id/metropolitan-district-council/wolverhampton","701656","Askews & Holts Library Services Limited","5875775","87.74","Books","130234128","04/01/2019","Local Economy","Global Budgets","R4309"
"Wolverhampton City Council","http://opendatacommunities.org/id/metropolitan-district-council/wolverhampton","701656","Askews & Holts Library Services Limited","5908246","44.92","Books","130236791","16/01/2019","Local Economy","Global Budgets","R4309"
"Wolverhampton City Council","http://opendatacommunities.org/id/metropolitan-district-council/wolverhampton","701656","Askews & Holts Library Services Limited","5888679","5.65","Books","130235658","16/01/2019","Local Economy","Global Budgets","R4309"
"Wolverhampton City Council","http://opendatacommunities.org/id/metropolitan-district-council/wolverhampton","701656","Askews & Holts Library Services Limited","5923923","19.83","Books","130238824","16/01/2019","Local Economy","Global Budgets","R4309"
"Wolverhampton City Council","http://opendatacommunities.org/id/metropolitan-district-council/wolverhampton","701656","Askews & Holts Library Services Limited","5896011","17.10","Books","130236060","16/01/2019","Local Economy","Global Budgets","R4309"
"Wolverhampton City Council","http://opendatacommunities.org/id/metropolitan-district-council/wolverhampton","701656","Askews & Holts Library Services Limited","5896089","5.07","Books","130236767","16/01/2019","Local Economy","Global Budgets","R4309"
"Wolverhampton City Council","http://opendatacommunities.org/id/metropolitan-district-council/wolverhampton","701656","Askews & Holts Library Services Limited","5919783","10.87","Books","130239090","16/01/2019","Local Economy","Global Budgets","R4309"
"Wolverhampton City Council","http://opendatacommunities.org/id/metropolitan-district-council/wolverhampton","701656","Askews & Holts Library Services Limited","5888680","14.94","Books","130235659","16/01/2019","Local Economy","Global Budgets","R4309"
"Wolverhampton City Council","http://opendatacommunities.org/id/metropolitan-district-council/wolverhampton","701656","Askews & Holts Library Services Limited","5908248","386.49","Books","130236793","16/01/2019","Local Economy","Global Budgets","R4309"
"Wolverhampton City Council","http://opendatacommunities.org/id/metropolitan-district-council/wolverhampton","701656","Askews & Holts Library Services Limited","5896015","100.98","Books","130236763","16/01/2019","Local Economy","Global Budgets","R4309"
"Wolverhampton City Council","http://opendatacommunities.org/id/metropolitan-district-council/wolverhampton","701656","Askews & Holts Library Services Limited","5875769","10.14","Books","130234124","23/01/2019","Local Economy","Global Budgets","R4309"
"Wolverhampton City Council","http://opendatacommunities.org/id/metropolitan-district-council/wolverhampton","701656","Askews & Holts Library Services Limited","5875768","5.65","Books","130234123","23/01/2019","Local Economy","Global Budgets","R4309"
"Wolverhampton City Council","http://opendatacommunities.org/id/metropolitan-district-council/wolverhampton","701656","Askews & Holts Library Services Limited","5875761","15.94","Books","130234117","23/01/2019","Local Economy","Global Budgets","R4309"
"Wolverhampton City Council","http://opendatacommunities.org/id/metropolitan-district-council/wolverhampton","701656","Askews & Holts Library Services Limited","5919771","5.07","Books","130239088","16/01/2019","Local Economy","Global Budgets","R4309"
"Wolverhampton City Council","http://opendatacommunities.org/id/metropolitan-district-council/wolverhampton","701656","Askews & Holts Library Services Limited","5911141","26.44","Books","130239087","16/01/2019","Local Economy","Global Budgets","R4309"
"Wolverhampton City Council","http://opendatacommunities.org/id/metropolitan-district-council/wolverhampton","701656","Askews & Holts Library Services Limited","5896012","26.96","Books","130236061","23/01/2019","Local Economy","Global Budgets","R4309"
"Wolverhampton City Council","http://opendatacommunities.org/id/metropolitan-district-council/wolverhampton","701656","Askews & Holts Library Services Limited","5896012","74.02","Books","130236061","23/01/2019","Local Economy","Global Budgets","R4309"
"Wolverhampton City Council","http://opendatacommunities.org/id/metropolitan-district-council/wolverhampton","701656","Askews & Holts Library Services Limited","5896087","6.23","Books","130236171","23/01/2019","Local Economy","Global Budgets","R4309"
"Wolverhampton City Council","http://opendatacommunities.org/id/metropolitan-district-council/wolverhampton","701656","Askews & Holts Library Services Limited","5896085","20.01","Books","130236067","23/01/2019","Local Economy","Global Budgets","R4309"
"Wolverhampton City Council","http://opendatacommunities.org/id/metropolitan-district-council/wolverhampton","701656","Askews & Holts Library Services Limited","5896005","27.24","Books","130236759","23/01/2019","Local Economy","Global Budgets","R4309"
"Wolverhampton City Council","http://opendatacommunities.org/id/metropolitan-district-council/wolverhampton","701656","Askews & Holts Library Services Limited","5908242","47.09","Books","130236789","23/01/2019","Local Economy","Global Budgets","R4309"
"Wolverhampton City Council","http://opendatacommunities.org/id/metropolitan-district-council/wolverhampton","701656","Askews & Holts Library Services Limited","5892160","14.94","Books","130234900","25/01/2019","Local Economy","Global Budgets","R4309"
"Wolverhampton City Council","http://opendatacommunities.org/id/metropolitan-district-council/wolverhampton","701656","Askews & Holts Library Services Limited","5896083","14.94","Books","130236065","23/01/2019","Local Economy","Global Budgets","R4309"
"Wolverhampton City Council","http://opendatacommunities.org/id/metropolitan-district-council/wolverhampton","701656","Askews & Holts Library Services Limited","5896083","21.59","Books","130236065","23/01/2019","Local Economy","Global Budgets","R4309"
"Wolverhampton City Council","http://opendatacommunities.org/id/metropolitan-district-council/wolverhampton","701656","Askews & Holts Library Services Limited","5896007","5.07","Books","130236760","23/01/2019","Local Economy","Global Budgets","R4309"
"Wolverhampton City Council","http://opendatacommunities.org/id/metropolitan-district-council/wolverhampton","701656","Askews & Holts Library Services Limited","5875763","10.72","Books","130234119","09/01/2019","Local Economy","Global Budgets","R4309"
"Wolverhampton City Council","http://opendatacommunities.org/id/metropolitan-district-council/wolverhampton","701656","Askews & Holts Library Services Limited","5914476","26.08","Books","130237821","04/01/2019","Local Economy","Global Budgets","R4309"
"Wolverhampton City Council","http://opendatacommunities.org/id/metropolitan-district-council/wolverhampton","701656","Askews & Holts Library Services Limited","5914476","49.41","Books","130237821","04/01/2019","Local Economy","Global Budgets","R4309"
"Wolverhampton City Council","http://opendatacommunities.org/id/metropolitan-district-council/wolverhampton","701656","Askews & Holts Library Services Limited","5914478","76.45","Books","130237823","04/01/2019","Local Economy","Global Budgets","R4309"
"Wolverhampton City Council","http://opendatacommunities.org/id/metropolitan-district-council/wolverhampton","701656","Askews & Holts Library Services Limited","5914471","28.41","Books","130237818","04/01/2019","Local Economy","Global Budgets","R4309"
"Wolverhampton City Council","http://opendatacommunities.org/id/metropolitan-district-council/wolverhampton","701656","Askews & Holts Library Services Limited","5914476","24.06","Books","130237821","04/01/2019","Local Economy","Global Budgets","R4309"
"Wolverhampton City Council","http://opendatacommunities.org/id/metropolitan-district-council/wolverhampton","701656","Askews & Holts Library Services Limited","5914476","5.72","Books","130237821","04/01/2019","Local Economy","Global Budgets","R4309"
"Wolverhampton City Council","http://opendatacommunities.org/id/metropolitan-district-council/wolverhampton","701656","Askews & Holts Library Services Limited","5914476","5.07","Books","130237821","04/01/2019","Local Economy","Global Budgets","R4309"
"Wolverhampton City Council","http://opendatacommunities.org/id/metropolitan-district-council/wolverhampton","701656","Askews & Holts Library Services Limited","5914476","9.13","Books","130237821","04/01/2019","Local Economy","Global Budgets","R4309"
"Wolverhampton City Council","http://opendatacommunities.org/id/metropolitan-district-council/wolverhampton","701656","Askews & Holts Library Services Limited","5914476","5.07","Books","130237821","04/01/2019","Local Economy","Global Budgets","R4309"
"Wolverhampton City Council","http://opendatacommunities.org/id/metropolitan-district-council/wolverhampton","701656","Askews & Holts Library Services Limited","5914476","10.72","Books","130237821","04/01/2019","Local Economy","Global Budgets","R4309"
"Wolverhampton City Council","http://opendatacommunities.org/id/metropolitan-district-council/wolverhampton","701656","Askews & Holts Library Services Limited","5914476","5.07","Books","130237821","04/01/2019","Local Economy","Global Budgets","R4309"
"Wolverhampton City Council","http://opendatacommunities.org/id/metropolitan-district-council/wolverhampton","701656","Askews & Holts Library Services Limited","5914476","83.19","Books","130237821","04/01/2019","Local Economy","Global Budgets","R4309"
"Wolverhampton City Council","http://opendatacommunities.org/id/metropolitan-district-council/wolverhampton","701656","Askews & Holts Library Services Limited","5914476","41.87","Books","130237821","04/01/2019","Local Economy","Global Budgets","R4309"
"Wolverhampton City Council","http://opendatacommunities.org/id/metropolitan-district-council/wolverhampton","701656","Askews & Holts Library Services Limited","5914473","60.30","Books","130237999","04/01/2019","Local Economy","Global Budgets","R4309"
"Wolverhampton City Council","http://opendatacommunities.org/id/metropolitan-district-council/wolverhampton","701656","Askews & Holts Library Services Limited","5914472","78.70","Books","130237998","04/01/2019","Local Economy","Global Budgets","R4309"
"Wolverhampton City Council","http://opendatacommunities.org/id/metropolitan-district-council/wolverhampton","701672","Assn Of Electoral Administrators","24607","1,480.00","Training Expenses","130237399","02/01/2019","Public Service Reform","Centralised Training","R1650"
"Wolverhampton City Council","http://opendatacommunities.org/id/metropolitan-district-council/wolverhampton","701680","Associated  Radio Taxi�s","ART-18-0031","828.90","Client Transport","130239181","09/01/2019","Special Educational Needs","Secondary- Transport","R3042"
"Wolverhampton City Council","http://opendatacommunities.org/id/metropolitan-district-council/wolverhampton","701680","Associated  Radio Taxi�s","ART-18-0029","795.60","Client Transport","130239179","09/01/2019","Special Educational Needs","Special - Transport","R3042"
"Wolverhampton City Council","http://opendatacommunities.org/id/metropolitan-district-council/wolverhampton","701680","Associated  Radio Taxi�s","ART-18-0030","921.00","Client Transport","130239180","09/01/2019","Special Educational Needs","Special - Transport","R3042"
"Wolverhampton City Council","http://opendatacommunities.org/id/metropolitan-district-council/wolverhampton","701680","Associated  Radio Taxi�s","ART-18-0032","712.50","Client Transport","130239182","09/01/2019","Special Educational Needs","Secondary- Transport","R3042"
"Wolverhampton City Council","http://opendatacommunities.org/id/metropolitan-district-council/wolverhampton","701680","Associated  Radio Taxi�s","ART-18-0028","675.74","Client Transport","130239178","09/01/2019","Special Educational Needs","Special - Transport","R3042"
"Wolverhampton City Council","http://opendatacommunities.org/id/metropolitan-district-council/wolverhampton","701680","Associated  Radio Taxi�s","ART-18-0025","1,316.30","Client Transport","130239314","04/01/2019","Special Educational Needs","Special - Transport","R3042"
"Wolverhampton City Council","http://opendatacommunities.org/id/metropolitan-district-council/wolverhampton","701680","Associated  Radio Taxi�s","ART-18-0026","804.58","Client Transport","130239176","09/01/2019","Special Educational Needs","Secondary- Transport","R3042"
"Wolverhampton City Council","http://opendatacommunities.org/id/metropolitan-district-council/wolverhampton","701680","Associated  Radio Taxi�s","ART-18-0027","1,004.55","Client Transport","130239177","09/01/2019","Special Educational Needs","Primary - Transport","R3042"
"Wolverhampton City Council","http://opendatacommunities.org/id/metropolitan-district-council/wolverhampton","701680","Associated  Radio Taxi�s","ART-18-0033","836.80","Client Transport","130239315","09/01/2019","Special Educational Needs","Special - Transport","R3042"
"Wolverhampton City Council","http://opendatacommunities.org/id/metropolitan-district-council/wolverhampton","701680","Associated  Radio Taxi�s","ART-18-00223","1,049.94","Client Transport","130239509","04/01/2019","Special Educational Needs","Secondary- Transport","R3042"
"Wolverhampton City Council","http://opendatacommunities.org/id/metropolitan-district-council/wolverhampton","701784","Bains Supersave Limited","APNEWS057","35.95","Books","130241224","23/01/2019","Local Economy","Global Budgets","R4309"
"Wolverhampton City Council","http://opendatacommunities.org/id/metropolitan-district-council/wolverhampton","701787","Baker Hall Limited","WV/12/18","542.50","Services - Consultants","130239965","25/01/2019","Planning","Building Consultancy","R4404"
"Wolverhampton City Council","http://opendatacommunities.org/id/metropolitan-district-council/wolverhampton","701798","Barbour Logic Limited","1726","3,420.00","Computing - Purchase of Software","130238341","11/01/2019","Parking Services","Parking Enforcement","R4531"
"Wolverhampton City Council","http://opendatacommunities.org/id/metropolitan-district-council/wolverhampton","701817","Base 25","3197","600.00","Section 17","130229773","18/01/2019","Strengthening Families","CP Area 4- Bingley","R6403"
"Wolverhampton City Council","http://opendatacommunities.org/id/metropolitan-district-council/wolverhampton","701832","Bbp.Security Services & Training Limited","1051CIV061218","6,924.87","Services - Security","130239092","11/01/2019","Visitor Economy","ALV - Darts & Comedy","R4405"
"Wolverhampton City Council","http://opendatacommunities.org/id/metropolitan-district-council/wolverhampton","701832","Bbp.Security Services & Training Limited","1049CIV261118","19,668.88","Services - Security","130236616","11/01/2019","Visitor Economy","ALV - Darts & Comedy","R4405"
"Wolverhampton City Council","http://opendatacommunities.org/id/metropolitan-district-council/wolverhampton","701832","Bbp.Security Services & Training Limited","357WCC121218","3,307.50","Services - Security","130239094","02/01/2019","Markets","Wholesale Market Facilities Management","R4405"
"Wolverhampton City Council","http://opendatacommunities.org/id/metropolitan-district-council/wolverhampton","701832","Bbp.Security Services & Training Limited","376WCC100119","4,189.50","Services - Security","130240375","16/01/2019","Facilities Management","Parkfields Office Accomodation","R4405"
"Wolverhampton City Council","http://opendatacommunities.org/id/metropolitan-district-council/wolverhampton","701832","Bbp.Security Services & Training Limited","368WCC171218","484.00","Services - Security","130239104","02/01/2019","Maintenance Programme","Asset Management Team","R4405"
"Wolverhampton City Council","http://opendatacommunities.org/id/metropolitan-district-council/wolverhampton","701832","Bbp.Security Services & Training Limited","363WCC121218","4,956.00","Services - Security","130239100","02/01/2019","Facilities Management","Parkfields Office Accomodation","R4405"
"Wolverhampton City Council","http://opendatacommunities.org/id/metropolitan-district-council/wolverhampton","701832","Bbp.Security Services & Training Limited","359WCC121218","756.00","Services - Security","130239096","02/01/2019","Facilities Management","Parkfields Office Accomodation","R4405"
"Wolverhampton City Council","http://opendatacommunities.org/id/metropolitan-district-council/wolverhampton","701832","Bbp.Security Services & Training Limited","1053CIV111218","445.61","Services - Security","130239093","02/01/2019","Visitor Economy","Civic Halls - CHIP","R4405"
"Wolverhampton City Council","http://opendatacommunities.org/id/metropolitan-district-council/wolverhampton","701832","Bbp.Security Services & Training Limited","364WCC171218","12,953.00","Services - Security","130239101","02/01/2019","Markets","Wolverhampton Indoor and Open Market","R4405"
"Wolverhampton City Council","http://opendatacommunities.org/id/metropolitan-district-council/wolverhampton","701832","Bbp.Security Services & Training Limited","369WCC191218","10,850.00","Services - Security","130239105","02/01/2019","Licensing","Private Hire Vehicles","R4405"
"Wolverhampton City Council","http://opendatacommunities.org/id/metropolitan-district-council/wolverhampton","701832","Bbp.Security Services & Training Limited","360WCC121218","2,383.50","Services - Security","130239097","02/01/2019","Facilities Management","i10 Facilities Management","R4405"
"Wolverhampton City Council","http://opendatacommunities.org/id/metropolitan-district-council/wolverhampton","701832","Bbp.Security Services & Training Limited","367WCC171218","261.25","Services - Security","130239103","02/01/2019","Maintenance Programme","Asset Management Team","R4405"
"Wolverhampton City Council","http://opendatacommunities.org/id/metropolitan-district-council/wolverhampton","701832","Bbp.Security Services & Training Limited","362WCC121218","367.50","Services - Security","130239099","02/01/2019","Facilities Management","Civic Centre","R4405"
"Wolverhampton City Council","http://opendatacommunities.org/id/metropolitan-district-council/wolverhampton","701832","Bbp.Security Services & Training Limited","358WCC121218","3,780.00","Services - Security","130239095","02/01/2019","Facilities Management","Parkfields Office Accomodation","R4405"
"Wolverhampton City Council","http://opendatacommunities.org/id/metropolitan-district-council/wolverhampton","701832","Bbp.Security Services & Training Limited","366WCC171218","162.50","Services - Security","130239102","02/01/2019","Markets","Bilston Market and Licensed Operations","R4405"
"Wolverhampton City Council","http://opendatacommunities.org/id/metropolitan-district-council/wolverhampton","701832","Bbp.Security Services & Training Limited","361WCC121218","1,947.75","Services - Security","130239098","02/01/2019","Facilities Management","Civic Centre","R4405"
"Wolverhampton City Council","http://opendatacommunities.org/id/metropolitan-district-council/wolverhampton","701832","Bbp.Security Services & Training Limited","1052LCIV061218","497.05","Services - Security","130239510","11/01/2019","Visitor Economy","The Little Civic","R4405"
"Wolverhampton City Council","http://opendatacommunities.org/id/metropolitan-district-council/wolverhampton","701832","Bbp.Security Services & Training Limited","370WCC241218","4,616.50","Services - Security","130239106","09/01/2019","Licensing","Private Hire Vehicles","R4405"
"Wolverhampton City Council","http://opendatacommunities.org/id/metropolitan-district-council/wolverhampton","701832","Bbp.Security Services & Training Limited","1050CIV230119OE","3,779.31","Services - Security","130242303","30/01/2019","Visitor Economy","Christmas Festivities","R4405"
"Wolverhampton City Council","http://opendatacommunities.org/id/metropolitan-district-council/wolverhampton","701832","Bbp.Security Services & Training Limited","382WCC230119","418.00","Services - Security","130242304","30/01/2019","Children & Young People In Care","Head of Service - LAC","R4405"
"Wolverhampton City Council","http://opendatacommunities.org/id/metropolitan-district-council/wolverhampton","701832","Bbp.Security Services & Training Limited","378WCC100119","209.00","Services - Security","130240377","16/01/2019","Maintenance Programme","Asset Management Team","R4405"
"Wolverhampton City Council","http://opendatacommunities.org/id/metropolitan-district-council/wolverhampton","701832","Bbp.Security Services & Training Limited","377WCC100119","493.50","Services - Security","130240376","16/01/2019","Facilities Management","Civic Centre","R4405"
"Wolverhampton City Council","http://opendatacommunities.org/id/metropolitan-district-council/wolverhampton","701832","Bbp.Security Services & Training Limited","375WCC100119","1,690.50","Services - Security","130240374","16/01/2019","Facilities Management","i10 Facilities Management","R4405"
"Wolverhampton City Council","http://opendatacommunities.org/id/metropolitan-district-council/wolverhampton","701832","Bbp.Security Services & Training Limited","379WCC100119","428.00","Services - Security","130240378","16/01/2019","Maintenance Programme","Asset Management Team","R4405"
"Wolverhampton City Council","http://opendatacommunities.org/id/metropolitan-district-council/wolverhampton","701832","Bbp.Security Services & Training Limited","371WCC020119","672.00","Services - Security","130239511","09/01/2019","Environmental Maintenance","Parks / Open Spaces - Repairs & Maintenance","R4405"
"Wolverhampton City Council","http://opendatacommunities.org/id/metropolitan-district-council/wolverhampton","701832","Bbp.Security Services & Training Limited","373WCC020119","484.00","Services - Security","130239513","09/01/2019","Children & Young People In Care","Head of Service - LAC","R4405"
"Wolverhampton City Council","http://opendatacommunities.org/id/metropolitan-district-council/wolverhampton","701832","Bbp.Security Services & Training Limited","374WCC100119","5,684.63","Services - Security","130240373","16/01/2019","Licensing","Private Hire Drivers","R4405"
"Wolverhampton City Council","http://opendatacommunities.org/id/metropolitan-district-council/wolverhampton","701832","Bbp.Security Services & Training Limited","372WCC020119","3,976.00","Services - Security","130239512","09/01/2019","Environmental Maintenance","Parks / Open Spaces - Repairs & Maintenance","R4405"
"Wolverhampton City Council","http://opendatacommunities.org/id/metropolitan-district-council/wolverhampton","701832","Bbp.Security Services & Training Limited","381WCC220119","940.00","Services - Professional Fees","130241673","30/01/2019","City Development","Strategic Disposals","R4400"
"Wolverhampton City Council","http://opendatacommunities.org/id/metropolitan-district-council/wolverhampton","701832","Bbp.Security Services & Training Limited","008AEW171218","10,956.76","Services - Security","130239091","04/01/2019","Adult Education","Service Wide","R4405"
"Wolverhampton City Council","http://opendatacommunities.org/id/metropolitan-district-council/wolverhampton","701835","BCC Mac T/A St Michaels Catholic","HCLI SEN Payment for 2018-19","13,552.81","Grant Payments","190545443","02/01/2019","Central Education","Primary ISB","R4700"
"Wolverhampton City Council","http://opendatacommunities.org/id/metropolitan-district-council/wolverhampton","701867","Believe To Achieve Limited","13526","60.00","Services - Professional Fees","130236976","04/01/2019","Strengthening Families","EI Area 1- Eastfield","R4400"
"Wolverhampton City Council","http://opendatacommunities.org/id/metropolitan-district-council/wolverhampton","701885","Berrymans Lace Mawer","2451320","1,918.20","Insurance - General","130240626","25/01/2019","Audit Services","Legal Liability","R4962"
"Wolverhampton City Council","http://opendatacommunities.org/id/metropolitan-district-council/wolverhampton","701885","Berrymans Lace Mawer","2451320","500.00","Insurance - General","130240626","25/01/2019","Audit Services","Legal Liability","R4962"
"Wolverhampton City Council","http://opendatacommunities.org/id/metropolitan-district-council/wolverhampton","701907","Beverages Direct Limited","698341","344.48","Provisions (Resale)","130240627","23/01/2019","Catering","Education Catering - General Overheads","R4102"
"Wolverhampton City Council","http://opendatacommunities.org/id/metropolitan-district-council/wolverhampton","701920","Biffa Waste Services Limited","887L49445","5,947.34","TPP - Waste Disposal","130239516","11/01/2019","Waste and Recycling Service","Waste Collection and Recycling Service - General","R5003"
"Wolverhampton City Council","http://opendatacommunities.org/id/metropolitan-district-council/wolverhampton","701920","Biffa Waste Services Limited","887L49704","6,142.51","TPP - Waste Disposal","130240186","30/01/2019","Waste and Recycling Service","Waste Collection and Recycling Service - General","R5003"
"Wolverhampton City Council","http://opendatacommunities.org/id/metropolitan-district-council/wolverhampton","701920","Biffa Waste Services Limited","887L49334","6,721.42","TPP - Waste Disposal","130238825","04/01/2019","Waste and Recycling Service","Waste Collection and Recycling Service - General","R5003"
"Wolverhampton City Council","http://opendatacommunities.org/id/metropolitan-district-council/wolverhampton","701920","Biffa Waste Services Limited","887L49389","6,743.10","TPP - Waste Disposal","130239515","04/01/2019","Waste and Recycling Service","Waste Collection and Recycling Service - General","R5003"
"Wolverhampton City Council","http://opendatacommunities.org/id/metropolitan-district-council/wolverhampton","701920","Biffa Waste Services Limited","887L49227","8,900.46","TPP - Waste Disposal","130239514","09/01/2019","Waste and Recycling Service","Waste Collection and Recycling Service - General","R5003"
"Wolverhampton City Council","http://opendatacommunities.org/id/metropolitan-district-council/wolverhampton","701920","Biffa Waste Services Limited","887L49499","7,883.58","TPP - Waste Disposal","130240888","23/01/2019","Waste and Recycling Service","Waste Collection and Recycling Service - General","R5003"
"Wolverhampton City Council","http://opendatacommunities.org/id/metropolitan-district-council/wolverhampton","701920","Biffa Waste Services Limited","887L49654","7,679.76","TPP - Waste Disposal","130239518","23/01/2019","Waste and Recycling Service","Waste Collection and Recycling Service - General","R5003"
"Wolverhampton City Council","http://opendatacommunities.org/id/metropolitan-district-council/wolverhampton","701920","Biffa Waste Services Limited","887L49615","6,964.26","TPP - Waste Disposal","130239183","16/01/2019","Waste and Recycling Service","Waste Collection and Recycling Service - General","R5003"
"Wolverhampton City Council","http://opendatacommunities.org/id/metropolitan-district-council/wolverhampton","701930","Bilston Resource Centre","SECTOR001","1,500.00","Room Hire","130239316","09/01/2019","Skills","Employment Programmes","R2201"
"Wolverhampton City Council","http://opendatacommunities.org/id/metropolitan-district-council/wolverhampton","701930","Bilston Resource Centre","UC005","11,299.05","Training Expenses","130240187","16/01/2019","Local Economy","Universal Credit","R1650"
"Wolverhampton City Council","http://opendatacommunities.org/id/metropolitan-district-council/wolverhampton","701944","Birmingham CC - General Fund","9002632057","8,524.23","Comms - Postage","130239834","30/01/2019","ICTS","Document Centre - General","R4503"
"Wolverhampton City Council","http://opendatacommunities.org/id/metropolitan-district-council/wolverhampton","701944","Birmingham CC - General Fund","9002632056","2,749.02","Comms - Postage","130239833","30/01/2019","Public Service Reform","Electoral Registration","R4503"
"Wolverhampton City Council","http://opendatacommunities.org/id/metropolitan-district-council/wolverhampton","701944","Birmingham CC - General Fund","9090283589","-35,499.58","Comms - Postage","130241466","30/01/2019","ICTS","Document Centre - General","R4503"
"Wolverhampton City Council","http://opendatacommunities.org/id/metropolitan-district-council/wolverhampton","701944","Birmingham CC - General Fund","9002631619","13,061.46","Comms - Postage","130239682","30/01/2019","Public Service Reform","Electoral Registration","R4503"
"Wolverhampton City Council","http://opendatacommunities.org/id/metropolitan-district-council/wolverhampton","701944","Birmingham CC - General Fund","9002631620","10,883.46","Comms - Postage","130239683","30/01/2019","ICTS","Document Centre - General","R4503"
"Wolverhampton City Council","http://opendatacommunities.org/id/metropolitan-district-council/wolverhampton","701944","Birmingham CC - General Fund","9090267194","-7,750.15","Comms - Postage","130241465","30/01/2019","ICTS","Document Centre - General","R4503"
"Wolverhampton City Council","http://opendatacommunities.org/id/metropolitan-district-council/wolverhampton","701944","Birmingham CC - General Fund","9002568263","35,499.58","Comms - Postage","130229466","30/01/2019","ICTS","Document Centre - General","R4503"
"Wolverhampton City Council","http://opendatacommunities.org/id/metropolitan-district-council/wolverhampton","701944","Birmingham CC - General Fund","9002491992","7,750.15","Comms - Postage","130217950","30/01/2019","ICTS","Document Centre - General","R4503"
"Wolverhampton City Council","http://opendatacommunities.org/id/metropolitan-district-council/wolverhampton","701962","Black Country Chamber Of Commerce","1002348","55,871.00","Grant Payments","130240628","30/01/2019","Enterprise","AIM for the Black Country non shared costs","R4700"
"Wolverhampton City Council","http://opendatacommunities.org/id/metropolitan-district-council/wolverhampton","701968","Black Country Partnership NHS Ft","3100001030","24,268.25","TPP - Social Care Support Services","130239835","30/01/2019","Service Director Children & Young People","Child & Adolescent Mental Health Service","R5501"
"Wolverhampton City Council","http://opendatacommunities.org/id/metropolitan-district-council/wolverhampton","701968","Black Country Partnership NHS Ft","3100001024","10,616.62","TPP - Social Care Support Services","130236979","02/01/2019","Service Director Children & Young People","Child & Adolescent Mental Health Service","R5501"
"Wolverhampton City Council","http://opendatacommunities.org/id/metropolitan-district-council/wolverhampton","701968","Black Country Partnership NHS Ft","3100001024","13,651.63","TPP - Social Care Support Services","130236979","02/01/2019","Service Director Children & Young People","Child & Adolescent Mental Health Service","R5501"
"Wolverhampton City Council","http://opendatacommunities.org/id/metropolitan-district-council/wolverhampton","701983","Blakenhall Neighbourhood Nursery","TFT Spring 2019 Inst 1","6,225.12","TPP - Private Nursery Education Funding","190553192","23/01/2019","Early Years","Early Years Entitlement Funding for Disadvantaged 2 Year Olds","R5035"
"Wolverhampton City Council","http://opendatacommunities.org/id/metropolitan-district-council/wolverhampton","701983","Blakenhall Neighbourhood Nursery","NEF Spring 2019 INST 1","18,360.00","TPP - Private Nursery Education Funding","190553185","23/01/2019","Early Years","Early Years Universal Entitlement for 3 and 4 Year Olds","R5035"
"Wolverhampton City Council","http://opendatacommunities.org/id/metropolitan-district-council/wolverhampton","701996","Blue Group Interntl Limited T/A Bluecare","HSOC5723529","1,369.00","Agency Staff","130238342","11/01/2019","Strengthening Families","CP Area 8 - Children�s Village","R1100"
"Wolverhampton City Council","http://opendatacommunities.org/id/metropolitan-district-council/wolverhampton","701996","Blue Group Interntl Limited T/A Bluecare","HSOC5723528","13.05","Agency Staff","130238556","11/01/2019","Strengthening Families","CP Area 8 - Children�s Village","R1100"
"Wolverhampton City Council","http://opendatacommunities.org/id/metropolitan-district-council/wolverhampton","701996","Blue Group Interntl Limited T/A Bluecare","HSOC5724445","7.20","Agency Staff","130239051","18/01/2019","Strengthening Families","CP Area 8 - Children�s Village","R1100"
"Wolverhampton City Council","http://opendatacommunities.org/id/metropolitan-district-council/wolverhampton","701996","Blue Group Interntl Limited T/A Bluecare","HSOC5724444","1,369.00","Agency Staff","130239050","18/01/2019","Strengthening Families","CP Area 8 - Children�s Village","R1100"
"Wolverhampton City Council","http://opendatacommunities.org/id/metropolitan-district-council/wolverhampton","701996","Blue Group Interntl Limited T/A Bluecare","HSOC5723202","1,369.00","Agency Staff","130239317","30/01/2019","Strengthening Families","CP Area 8 - Children�s Village","R1100"
"Wolverhampton City Council","http://opendatacommunities.org/id/metropolitan-district-council/wolverhampton","702015","Boc Limited","3050599880","95.25","Gas","130239319","23/01/2019","Visitor Economy","The Little Civic","R2101"
"Wolverhampton City Council","http://opendatacommunities.org/id/metropolitan-district-council/wolverhampton","702015","Boc Limited","3050495418","61.10","Gas","130239318","09/01/2019","Visitor Economy","The Little Civic","R2101"
"Wolverhampton City Council","http://opendatacommunities.org/id/metropolitan-district-council/wolverhampton","702034","Boots UK Ltd","M2016Q115HL304NQ/CN","-76.00","TPP - Public Health Contracts","190278339","25/01/2019","Healthy Life Expectancy","Healthy Lifestyles","R5060"
"Wolverhampton City Council","http://opendatacommunities.org/id/metropolitan-district-council/wolverhampton","702034","Boots UK Ltd","M2016Q115SHCIFRQ/LATE/CN","-321.72","TPP - Public Health Contracts","190278342","25/01/2019","Starting and Developing Well","Sexual Health","R5060"
"Wolverhampton City Council","http://opendatacommunities.org/id/metropolitan-district-council/wolverhampton","702034","Boots UK Ltd","SHEHCC24Q Q12016b/CN","-125.76","TPP - Public Health Contracts","190271327","25/01/2019","Starting and Developing Well","Sexual Health","R5060"
"Wolverhampton City Council","http://opendatacommunities.org/id/metropolitan-district-council/wolverhampton","702034","Boots UK Ltd","SHEHCC25Q Q12016/CN","-10.48","TPP - Public Health Contracts","190271325","25/01/2019","Starting and Developing Well","Sexual Health","R5060"
"Wolverhampton City Council","http://opendatacommunities.org/id/metropolitan-district-council/wolverhampton","702034","Boots UK Ltd","M2016Q115HL1IPRQ/CN","-3.00","TPP - Public Health Contracts","190278337","25/01/2019","Healthy Life Expectancy","Healthy Lifestyles","R5060"
"Wolverhampton City Council","http://opendatacommunities.org/id/metropolitan-district-council/wolverhampton","702034","Boots UK Ltd","M2016Q115HL304TQ/CN","-110.00","TPP - Public Health Contracts","190278340","25/01/2019","Healthy Life Expectancy","Healthy Lifestyles","R5060"
"Wolverhampton City Council","http://opendatacommunities.org/id/metropolitan-district-council/wolverhampton","702034","Boots UK Ltd","9224-1800024281","6,750.00","Medical Fees","130240630","25/01/2019","Healthy Ageing","Healthy Ageing","R1400"
"Wolverhampton City Council","http://opendatacommunities.org/id/metropolitan-district-council/wolverhampton","702034","Boots UK Ltd","SHEHCLQ Q12016b/CN","-37.62","TPP - Public Health Contracts","190271326","25/01/2019","Starting and Developing Well","Sexual Health","R5060"
"Wolverhampton City Council","http://opendatacommunities.org/id/metropolitan-district-council/wolverhampton","702034","Boots UK Ltd","SHEHCC25Q Q12016b/CN","-241.04","TPP - Public Health Contracts","190271328","25/01/2019","Starting and Developing Well","Sexual Health","R5060"
"Wolverhampton City Council","http://opendatacommunities.org/id/metropolitan-district-council/wolverhampton","702034","Boots UK Ltd","M2016Q115SHIUDFQ/LATE/CN","-95.88","TPP - Public Health Contracts","190278344","25/01/2019","Starting and Developing Well","Sexual Health","R5060"
"Wolverhampton City Council","http://opendatacommunities.org/id/metropolitan-district-council/wolverhampton","702034","Boots UK Ltd","M2016Q115HL2COMQ/CN","-75.00","TPP - Public Health Contracts","190278338","25/01/2019","Healthy Life Expectancy","Healthy Lifestyles","R5060"
"Wolverhampton City Council","http://opendatacommunities.org/id/metropolitan-district-council/wolverhampton","702034","Boots UK Ltd","M2016Q115SHCIFBQ/LATE/CN","-122.54","TPP - Public Health Contracts","190278343","25/01/2019","Starting and Developing Well","Sexual Health","R5060"
"Wolverhampton City Council","http://opendatacommunities.org/id/metropolitan-district-council/wolverhampton","702034","Boots UK Ltd","M2016Q115SHCIFIQ/LATE/CN","-321.72","TPP - Public Health Contracts","190278341","25/01/2019","Starting and Developing Well","Sexual Health","R5060"
"Wolverhampton City Council","http://opendatacommunities.org/id/metropolitan-district-council/wolverhampton","702041","Boulton Travel Limited","BTWCBM1.37","1,170.00","Client Transport","130239320","16/01/2019","Special Educational Needs","Special - Transport","R3042"
"Wolverhampton City Council","http://opendatacommunities.org/id/metropolitan-district-council/wolverhampton","702041","Boulton Travel Limited","BTWCTW13.11","1,425.00","Client Transport","130238753","16/01/2019","Special Educational Needs","Special - Transport","R3042"
"Wolverhampton City Council","http://opendatacommunities.org/id/metropolitan-district-council/wolverhampton","702041","Boulton Travel Limited","BTWCBM3.37","1,170.00","Client Transport","130239321","16/01/2019","Special Educational Needs","Special - Transport","R3042"
"Wolverhampton City Council","http://opendatacommunities.org/id/metropolitan-district-council/wolverhampton","702041","Boulton Travel Limited","BTWCGPT3.12","1,635.00","Client Transport","130238751","16/01/2019","Special Educational Needs","Special - Transport","R3042"
"Wolverhampton City Council","http://opendatacommunities.org/id/metropolitan-district-council/wolverhampton","702041","Boulton Travel Limited","BTWCTW12.15","1,950.00","Client Transport","130238752","16/01/2019","Special Educational Needs","Special - Transport","R3042"
"Wolverhampton City Council","http://opendatacommunities.org/id/metropolitan-district-council/wolverhampton","702041","Boulton Travel Limited","BTWCBM4.37","1,170.00","Client Transport","130239322","16/01/2019","Special Educational Needs","Special - Transport","R3042"
"Wolverhampton City Council","http://opendatacommunities.org/id/metropolitan-district-council/wolverhampton","702041","Boulton Travel Limited","BTWCBM5.37","1,170.00","Client Transport","130238750","16/01/2019","Special Educational Needs","Special - Transport","R3042"
"Wolverhampton City Council","http://opendatacommunities.org/id/metropolitan-district-council/wolverhampton","702046","Bourne Leisure Limited","BR00291108","7,027.00","TPP - Short Breaks","130241538","25/01/2019","Carer Support","Carers Support","R5500"
"Wolverhampton City Council","http://opendatacommunities.org/id/metropolitan-district-council/wolverhampton","702046","Bourne Leisure Limited","BR00295251","248.80","TPP - Short Breaks","130241543","25/01/2019","Carer Support","Carers Support","R5500"
"Wolverhampton City Council","http://opendatacommunities.org/id/metropolitan-district-council/wolverhampton","702046","Bourne Leisure Limited","BR00294181","139.52","TPP - Short Breaks","130241542","25/01/2019","Carer Support","Carers Support","R5500"
"Wolverhampton City Council","http://opendatacommunities.org/id/metropolitan-district-council/wolverhampton","702046","Bourne Leisure Limited","BR00291109","-235.00","TPP - Short Breaks","130241539","25/01/2019","Carer Support","Carers Support","R5500"
"Wolverhampton City Council","http://opendatacommunities.org/id/metropolitan-district-council/wolverhampton","702046","Bourne Leisure Limited","BR00277835","310.95","TPP - Short Breaks","130241537","25/01/2019","Carer Support","Carers Support","R5500"
"Wolverhampton City Council","http://opendatacommunities.org/id/metropolitan-district-council/wolverhampton","702046","Bourne Leisure Limited","BR00294128","123.39","TPP - Short Breaks","130241541","25/01/2019","Carer Support","Carers Support","R5500"
"Wolverhampton City Council","http://opendatacommunities.org/id/metropolitan-district-council/wolverhampton","702046","Bourne Leisure Limited","BR00295252","309.92","TPP - Short Breaks","130241544","25/01/2019","Carer Support","Carers Support","R5500"
"Wolverhampton City Council","http://opendatacommunities.org/id/metropolitan-district-council/wolverhampton","702046","Bourne Leisure Limited","BR00293305","35.00","TPP - Short Breaks","130241540","30/01/2019","Carer Support","Carers Support","R5500"
"Wolverhampton City Council","http://opendatacommunities.org/id/metropolitan-district-council/wolverhampton","702057","Bradley Environmental Consultant Limited","30163","958.04","Services - Professional Fees","130241674","30/01/2019","Corporate Asset Management","Statutory Surveys","R4400"
"Wolverhampton City Council","http://opendatacommunities.org/id/metropolitan-district-council/wolverhampton","702057","Bradley Environmental Consultant Limited","30021","390.09","Services - Professional Fees","130241343","30/01/2019","Corporate Asset Management","Statutory Surveys","R4400"
"Wolverhampton City Council","http://opendatacommunities.org/id/metropolitan-district-council/wolverhampton","702071","Brakes/Brakefresh","9279100760","89.75","Provisions (Resale)","130239969","23/01/2019","Catering","Civic Centre Catering","R4102"
"Wolverhampton City Council","http://opendatacommunities.org/id/metropolitan-district-council/wolverhampton","702071","Brakes/Brakefresh","9279082533","192.05","Provisions (Resale)","130239967","16/01/2019","Catering","Civic Centre Catering","R4102"
"Wolverhampton City Council","http://opendatacommunities.org/id/metropolitan-district-council/wolverhampton","702071","Brakes/Brakefresh","9279090088","196.45","Provisions (Resale)","130239968","16/01/2019","Catering","Civic Centre Catering","R4102"
"Wolverhampton City Council","http://opendatacommunities.org/id/metropolitan-district-council/wolverhampton","702071","Brakes/Brakefresh","9279060836","545.48","Provisions (Resale)","130239184","09/01/2019","Catering","Civic Centre Catering","R4102"
"Wolverhampton City Council","http://opendatacommunities.org/id/metropolitan-district-council/wolverhampton","702071","Brakes/Brakefresh","9279065499","440.99","Provisions (Resale)","130239185","09/01/2019","Catering","Civic Centre Catering","R4102"
"Wolverhampton City Council","http://opendatacommunities.org/id/metropolitan-district-council/wolverhampton","702071","Brakes/Brakefresh","9279077967","169.76","Provisions (Resale)","130239187","09/01/2019","Catering","Civic Centre Catering","R4102"
"Wolverhampton City Council","http://opendatacommunities.org/id/metropolitan-district-council/wolverhampton","702071","Brakes/Brakefresh","7279001280","-4.97","Provisions (Resale)","130238557","09/01/2019","Catering","Civic Centre Catering","R4102"
"Wolverhampton City Council","http://opendatacommunities.org/id/metropolitan-district-council/wolverhampton","702071","Brakes/Brakefresh","9279069976","192.95","Provisions (Resale)","130239186","09/01/2019","Catering","Civic Centre Catering","R4102"
"Wolverhampton City Council","http://opendatacommunities.org/id/metropolitan-district-council/wolverhampton","702104","Bristow & Sutor","198011","633.11","Bailiff Action","130240170","11/01/2019","Revenues & Benefits","Revenues","R9382"
"Wolverhampton City Council","http://opendatacommunities.org/id/metropolitan-district-council/wolverhampton","702104","Bristow & Sutor","200920","310.00","Bailiff Action","130240173","11/01/2019","Revenues & Benefits","Revenues","R9382"
"Wolverhampton City Council","http://opendatacommunities.org/id/metropolitan-district-council/wolverhampton","702104","Bristow & Sutor","200729 VAT ONLY","75.00","Bailiff Action","130239664","04/01/2019","Revenues & Benefits","Revenues","R9382"
"Wolverhampton City Council","http://opendatacommunities.org/id/metropolitan-district-council/wolverhampton","702117","British Parking Association","52938","119.24","Subscriptions","130239684","11/01/2019","Parking Services","Car Parks Operational Staff","R4701"
"Wolverhampton City Council","http://opendatacommunities.org/id/metropolitan-district-council/wolverhampton","702126","BT (Phone Bills)","VP 03799470 Q037","3,471.12","Computing - Internet","190548836","11/01/2019","ICTS","Strategic ICTS (ICT Service Budget)","R4537"
"Wolverhampton City Council","http://opendatacommunities.org/id/metropolitan-district-council/wolverhampton","702126","BT (Phone Bills)","CM63816541 Q051BU(1)","40.00","Fixtures and Fittings - R&M","190549683","16/01/2019","Facilities Management","Caretakers Community Centre","R2502"
"Wolverhampton City Council","http://opendatacommunities.org/id/metropolitan-district-council/wolverhampton","702126","BT (Phone Bills)","CM64920663 Q042RC","95.70","Fixtures and Fittings - R&M","190549679","16/01/2019","Facilities Management","Bilston Town Hall","R2502"
"Wolverhampton City Council","http://opendatacommunities.org/id/metropolitan-district-council/wolverhampton","702126","BT (Phone Bills)","CM59355938 Q11991","100.38","Fixtures and Fittings - R&M","190549684","16/01/2019","Maintenance Programme","Centralised R&M","R2502"
"Wolverhampton City Council","http://opendatacommunities.org/id/metropolitan-district-council/wolverhampton","702126","BT (Phone Bills)","CM59966476 Q108YO","117.29","Fixtures and Fittings - R&M","190549681","16/01/2019","Facilities Management","Caretakers Community Centre","R2502"
"Wolverhampton City Council","http://opendatacommunities.org/id/metropolitan-district-council/wolverhampton","702126","BT (Phone Bills)","CM64920663 Q042RC(1)","40.00","Fixtures and Fittings - R&M","190549680","16/01/2019","Facilities Management","Bilston Town Hall","R2502"
"Wolverhampton City Council","http://opendatacommunities.org/id/metropolitan-district-council/wolverhampton","702126","BT (Phone Bills)","CM63816541 Q051BU","111.59","Fixtures and Fittings - R&M","190549682","16/01/2019","Facilities Management","Caretakers Community Centre","R2502"
"Wolverhampton City Council","http://opendatacommunities.org/id/metropolitan-district-council/wolverhampton","702126","BT (Phone Bills)","#REF!","585.14","Fixtures and Fittings - R&M","190551712","18/01/2019","Maintenance Programme","Centralised R&M","R2502"
"Wolverhampton City Council","http://opendatacommunities.org/id/metropolitan-district-council/wolverhampton","702126","BT (Phone Bills)","CM68451735 M041W&","51.91","Fixtures and Fittings - R&M","190548240","09/01/2019","Facilities Management","Victoria Square, Block 11","R2502"
"Wolverhampton City Council","http://opendatacommunities.org/id/metropolitan-district-council/wolverhampton","702157","Browne Jacobson Llp","TP100142/LG - 0000261985","150,000.00","Insurance - General","190548620","11/01/2019","Audit Services","Legal Liability","R4962"
"Wolverhampton City Council","http://opendatacommunities.org/id/metropolitan-district-council/wolverhampton","702157","Browne Jacobson Llp","My ref EL140028/ER8 Your ref 262721","48.91","Insurance - General","190547872","09/01/2019","Audit Services","Legal Liability","R4962"
"Wolverhampton City Council","http://opendatacommunities.org/id/metropolitan-district-council/wolverhampton","702157","Browne Jacobson Llp","My ref EL140028/ER7 Your ref 262721","25.80","Insurance - General","190547871","09/01/2019","Audit Services","Legal Liability","R4962"
"Wolverhampton City Council","http://opendatacommunities.org/id/metropolitan-district-council/wolverhampton","702157","Browne Jacobson Llp","My ref: TP9601/LG Your ref: IN000001743","472.50","Insurance - General","190553247","23/01/2019","Audit Services","Legal Liability","R4962"
"Wolverhampton City Council","http://opendatacommunities.org/id/metropolitan-district-council/wolverhampton","702158","Browne Jacobson Llp","386940","1,992.00","Insurance - General","130229781","23/01/2019","Audit Services","Legal Liability","R4962"
"Wolverhampton City Council","http://opendatacommunities.org/id/metropolitan-district-council/wolverhampton","702158","Browne Jacobson Llp","400811","3,622.48","Insurance - General","130230820","25/01/2019","Audit Services","Legal Liability","R4962"
"Wolverhampton City Council","http://opendatacommunities.org/id/metropolitan-district-council/wolverhampton","702164","Bruton Knowles","BHM-19-24153","2,428.80","External Professional Fees","130238559","16/01/2019","-","GF - Accessing Growth Fund","C6002"
"Wolverhampton City Council","http://opendatacommunities.org/id/metropolitan-district-council/wolverhampton","702164","Bruton Knowles","BHM-19-23966","9,800.00","Services - Professional Fees","130237413","11/01/2019","Corporate Asset Management","Energy Management","R4400"
"Wolverhampton City Council","http://opendatacommunities.org/id/metropolitan-district-council/wolverhampton","702164","Bruton Knowles","BHM-19-23970","6,000.00","Services - Professional Fees","130238105","09/01/2019","Estates and Valuations","Estates and Valuations Team","R4400"
"Wolverhampton City Council","http://opendatacommunities.org/id/metropolitan-district-council/wolverhampton","702164","Bruton Knowles","BHM-19-23967","9,800.00","Services - Professional Fees","130236803","23/01/2019","Corporate Asset Management","Energy Management","R4400"
"Wolverhampton City Council","http://opendatacommunities.org/id/metropolitan-district-council/wolverhampton","702172","BT Global","492956","17,937.32","Equipment - Hire","130239519","16/01/2019","Operation & Maintenance of Existing Network","UTC Dudley","R4001"
"Wolverhampton City Council","http://opendatacommunities.org/id/metropolitan-district-council/wolverhampton","702172","BT Global","493004","8,915.95","Equipment - Hire","130239521","16/01/2019","Operation & Maintenance of Existing Network","UTC - Solihull MBC","R4001"
"Wolverhampton City Council","http://opendatacommunities.org/id/metropolitan-district-council/wolverhampton","702172","BT Global","492983","30,890.71","Equipment - Hire","130239520","16/01/2019","Operation & Maintenance of Existing Network","UTC Wolverhampton","R4001"
"Wolverhampton City Council","http://opendatacommunities.org/id/metropolitan-district-council/wolverhampton","702172","BT Global","493044","10,863.91","Equipment - Hire","130241513","23/01/2019","Operation & Maintenance of Existing Network","UTC - Sandwell MBC","R4001"
"Wolverhampton City Council","http://opendatacommunities.org/id/metropolitan-district-council/wolverhampton","702181","United Living","CSIN000714","819,958.00","Construction and Conversion","130240633","23/01/2019","-","Decent Homes - Stock Improvements","C1100"
"Wolverhampton City Council","http://opendatacommunities.org/id/metropolitan-district-council/wolverhampton","702181","United Living","CSIN000716","406,126.00","Construction and Conversion","130240635","23/01/2019","-","Refurbishment of Voids","C1100"
"Wolverhampton City Council","http://opendatacommunities.org/id/metropolitan-district-council/wolverhampton","702181","United Living","CSIN000717","63,796.00","R&M - Departmental planned (external)","130240636","23/01/2019","Housing Revenue Account","Amounts to be Settled with Wolverhampton Homes","R2001"
"Wolverhampton City Council","http://opendatacommunities.org/id/metropolitan-district-council/wolverhampton","702181","United Living","CSIN000713","295,121.00","Construction and Conversion","130240632","23/01/2019","-","Decent Homes - Stock Improvements","C1100"
"Wolverhampton City Council","http://opendatacommunities.org/id/metropolitan-district-council/wolverhampton","702181","United Living","CSIN000715","64,661.00","Construction and Conversion","130240634","25/01/2019","-","Structural works","C1100"
"Wolverhampton City Council","http://opendatacommunities.org/id/metropolitan-district-council/wolverhampton","702207","Bushbury Hill Emb Limited","1008","2,250.00","Services - Professional Fees","130239836","30/01/2019","Headstart","Headstart Hubs","R4400"
"Wolverhampton City Council","http://opendatacommunities.org/id/metropolitan-district-council/wolverhampton","702207","Bushbury Hill Emb Limited","283","6,861.00","Services - Fees and Charges","130240074","11/01/2019","Housing Revenue Account","HRA General","R4401"
"Wolverhampton City Council","http://opendatacommunities.org/id/metropolitan-district-council/wolverhampton","702231","Bytes Software Services Limited","540168","124.44","Computing - Purchase of Hardware","130239685","23/01/2019","ICTS","Strategic ICTS (ICT Service Budget)","R4530"
"Wolverhampton City Council","http://opendatacommunities.org/id/metropolitan-district-council/wolverhampton","702231","Bytes Software Services Limited","540168","10.00","Computing - Purchase of Hardware","130239685","23/01/2019","ICTS","Strategic ICTS (ICT Service Budget)","R4530"
"Wolverhampton City Council","http://opendatacommunities.org/id/metropolitan-district-council/wolverhampton","702231","Bytes Software Services Limited","530776","12,382.93","Computing - Licences","130240898","18/01/2019","ICTS","Strategic ICTS (ICT Service Budget)","R4535"
"Wolverhampton City Council","http://opendatacommunities.org/id/metropolitan-district-council/wolverhampton","702273","Cale Access  UK Ltd (Cale Briparc)","137473","4,953.60","Computing - Purchase of Software","130239323","09/01/2019","Parking Services","On Street Parking","R4531"
"Wolverhampton City Council","http://opendatacommunities.org/id/metropolitan-district-council/wolverhampton","702273","Cale Access  UK Ltd (Cale Briparc)","137474","3,715.20","Computing - Purchase of Software","130239324","09/01/2019","Parking Services","Car Parks Operational Staff","R4531"
"Wolverhampton City Council","http://opendatacommunities.org/id/metropolitan-district-council/wolverhampton","702293","Camfil Limited","469339","1,190.48","Materials","130238348","09/01/2019","Maintenance Programme","Civic Centre Repairs & Maintenance","R4007"
"Wolverhampton City Council","http://opendatacommunities.org/id/metropolitan-district-council/wolverhampton","702302","Canon (UK) Limited","9242122","1,113.59","Printing","130241844","30/01/2019","Planning","Planning","R4300"
"Wolverhampton City Council","http://opendatacommunities.org/id/metropolitan-district-council/wolverhampton","702334","HAS Technology Limited","339934","5,080.00","Computing - Maint Agreements","130241675","30/01/2019","Strategic Commissioning","Head of Strategic Commissioning","R4534"
"Wolverhampton City Council","http://opendatacommunities.org/id/metropolitan-district-council/wolverhampton","702334","HAS Technology Limited","339865","6,686.95","Computing - Maint Agreements","130239970","11/01/2019","Strategic Commissioning","Head of Strategic Commissioning","R4534"
"Wolverhampton City Council","http://opendatacommunities.org/id/metropolitan-district-council/wolverhampton","702338","Care Shop","OP/I484851","88.35","Cleaning Supplies and Materials","130241227","23/01/2019","Learning Disability Provider","Support Plus","R2705"
"Wolverhampton City Council","http://opendatacommunities.org/id/metropolitan-district-council/wolverhampton","702338","Care Shop","OP/I410772","48.59","Equipment - Purchase","130230825","25/01/2019","Older People Provider Services","Bradley Lodge Resource Centre","R4000"
"Wolverhampton City Council","http://opendatacommunities.org/id/metropolitan-district-council/wolverhampton","702356","Caritas Recruitment Limited","3088738","570.00","Agency Staff","130240637","16/01/2019","Strengthening Families","MASH","R1100"
"Wolverhampton City Council","http://opendatacommunities.org/id/metropolitan-district-council/wolverhampton","702356","Caritas Recruitment Limited","3087889","1,406.00","Agency Staff","130230580","09/01/2019","Strengthening Families","MASH","R1100"
"Wolverhampton City Council","http://opendatacommunities.org/id/metropolitan-district-council/wolverhampton","702356","Caritas Recruitment Limited","3089071","1,406.00","Agency Staff","130240638","25/01/2019","Strengthening Families","MASH","R1100"
"Wolverhampton City Council","http://opendatacommunities.org/id/metropolitan-district-council/wolverhampton","702356","Caritas Recruitment Limited","3089721","1,406.00","Agency Staff","130240901","25/01/2019","Strengthening Families","MASH","R1100"
"Wolverhampton City Council","http://opendatacommunities.org/id/metropolitan-district-council/wolverhampton","702356","Caritas Recruitment Limited","3090139","1,406.00","Agency Staff","130240640","25/01/2019","Strengthening Families","MASH","R1100"
"Wolverhampton City Council","http://opendatacommunities.org/id/metropolitan-district-council/wolverhampton","702356","Caritas Recruitment Limited","3088256","1,406.00","Agency Staff","130231413","09/01/2019","Strengthening Families","MASH","R1100"
"Wolverhampton City Council","http://opendatacommunities.org/id/metropolitan-district-council/wolverhampton","702356","Caritas Recruitment Limited","3088257","1,406.00","Agency Staff","130230581","09/01/2019","Strengthening Families","MASH","R1100"
"Wolverhampton City Council","http://opendatacommunities.org/id/metropolitan-district-council/wolverhampton","702356","Caritas Recruitment Limited","3089722","1,406.00","Agency Staff","130240639","25/01/2019","Strengthening Families","MASH","R1100"
"Wolverhampton City Council","http://opendatacommunities.org/id/metropolitan-district-council/wolverhampton","702372","C�Art Art Transport Limited","117312","375.00","Services - Professional Fees","130239971","16/01/2019","Visitor Economy","Contemporary Gallery - NPO ACE WAG","R4400"
"Wolverhampton City Council","http://opendatacommunities.org/id/metropolitan-district-council/wolverhampton","702372","C�Art Art Transport Limited","117324","365.00","Services - Professional Fees","130239972","16/01/2019","Visitor Economy","Chris Harrison Exhibition -  ACE NPO WAG","R4400"
"Wolverhampton City Council","http://opendatacommunities.org/id/metropolitan-district-council/wolverhampton","702376","Cartridge Save Limited","INVV01161","54.48","Stationery","130239837","09/01/2019","Bereavement Services","Cemeteries","R4308"
"Wolverhampton City Council","http://opendatacommunities.org/id/metropolitan-district-council/wolverhampton","702380","Carver (Wolverhampton) Limited","PSCR10005065955","-64.82","Materials","130236077","16/01/2019","Bereavement Services","Bereavement services - Grounds maintenance","R4007"
"Wolverhampton City Council","http://opendatacommunities.org/id/metropolitan-district-council/wolverhampton","702380","Carver (Wolverhampton) Limited","PSCR10005065955","-25.00","Materials","130236077","16/01/2019","Bereavement Services","Bereavement services - Grounds maintenance","R4007"
"Wolverhampton City Council","http://opendatacommunities.org/id/metropolitan-district-council/wolverhampton","702380","Carver (Wolverhampton) Limited","PSCR10005065317","-52.65","Materials","130240379","16/01/2019","Bereavement Services","Bereavement services - Grounds maintenance","R4007"
"Wolverhampton City Council","http://opendatacommunities.org/id/metropolitan-district-council/wolverhampton","702380","Carver (Wolverhampton) Limited","PSINV01001604297","526.50","Materials","130229626","16/01/2019","Bereavement Services","Bereavement services - Grounds maintenance","R4007"
"Wolverhampton City Council","http://opendatacommunities.org/id/metropolitan-district-council/wolverhampton","702380","Carver (Wolverhampton) Limited","PSINV01001607822","89.82","Materials","130241098","18/01/2019","Bereavement Services","Bereavement services - Grounds maintenance","R4007"
"Wolverhampton City Council","http://opendatacommunities.org/id/metropolitan-district-council/wolverhampton","702380","Carver (Wolverhampton) Limited","01001679662","52.28","Equipment - Purchase","190551891","18/01/2019","Fleet Services","Fleet Management","R4000"
"Wolverhampton City Council","http://opendatacommunities.org/id/metropolitan-district-council/wolverhampton","702380","Carver (Wolverhampton) Limited","01001679662","5.66","Equipment - Purchase","190551891","18/01/2019","Fleet Services","Fleet Management","R4000"
"Wolverhampton City Council","http://opendatacommunities.org/id/metropolitan-district-council/wolverhampton","702380","Carver (Wolverhampton) Limited","01001679662","3.87","Equipment - Purchase","190551891","18/01/2019","Fleet Services","Fleet Management","R4000"
"Wolverhampton City Council","http://opendatacommunities.org/id/metropolitan-district-council/wolverhampton","702380","Carver (Wolverhampton) Limited","01001679662","11.34","Equipment - Purchase","190551891","18/01/2019","Fleet Services","Fleet Management","R4000"
"Wolverhampton City Council","http://opendatacommunities.org/id/metropolitan-district-council/wolverhampton","702380","Carver (Wolverhampton) Limited","01001679662","32.64","Equipment - Purchase","190551891","18/01/2019","Fleet Services","Fleet Management","R4000"
"Wolverhampton City Council","http://opendatacommunities.org/id/metropolitan-district-council/wolverhampton","702380","Carver (Wolverhampton) Limited","PSINV01001679909","643.04","Materials","130239107","02/01/2019","Bereavement Services","Bereavement services - Grounds maintenance","R4007"
"Wolverhampton City Council","http://opendatacommunities.org/id/metropolitan-district-council/wolverhampton","702380","Carver (Wolverhampton) Limited","PSINV01001682944","266.93","Materials","130239686","11/01/2019","Environmental Maintenance","Ground Maintenance East","R4007"
"Wolverhampton City Council","http://opendatacommunities.org/id/metropolitan-district-council/wolverhampton","702382","Carwood Motor Units Limited","1250022","125.00","Services - Professional Fees","190551195","16/01/2019","Fleet Services","Fleet Management","R4400"
"Wolverhampton City Council","http://opendatacommunities.org/id/metropolitan-district-council/wolverhampton","702382","Carwood Motor Units Limited","1244726","1,514.04","Services - Professional Fees","190551192","16/01/2019","Fleet Services","Fleet Management","R4400"
"Wolverhampton City Council","http://opendatacommunities.org/id/metropolitan-district-council/wolverhampton","702382","Carwood Motor Units Limited","1250021","125.00","Services - Professional Fees","190551194","16/01/2019","Fleet Services","Fleet Management","R4400"
"Wolverhampton City Council","http://opendatacommunities.org/id/metropolitan-district-council/wolverhampton","702382","Carwood Motor Units Limited","1247157","499.00","Services - Professional Fees","190551193","16/01/2019","Fleet Services","Fleet Management","R4400"
"Wolverhampton City Council","http://opendatacommunities.org/id/metropolitan-district-council/wolverhampton","702382","Carwood Motor Units Limited","1248225","870.00","Services - Professional Fees","190548860","11/01/2019","Fleet Services","Fleet Management","R4400"
"Wolverhampton City Council","http://opendatacommunities.org/id/metropolitan-district-council/wolverhampton","702382","Carwood Motor Units Limited","1247160","100.00","Services - Professional Fees","190548859","11/01/2019","Fleet Services","Fleet Management","R4400"
"Wolverhampton City Council","http://opendatacommunities.org/id/metropolitan-district-council/wolverhampton","702382","Carwood Motor Units Limited","1247159","120.00","Services - Professional Fees","190548858","11/01/2019","Fleet Services","Fleet Management","R4400"
"Wolverhampton City Council","http://opendatacommunities.org/id/metropolitan-district-council/wolverhampton","702382","Carwood Motor Units Limited","1247158","54.06","Services - Professional Fees","190548857","11/01/2019","Fleet Services","Fleet Management","R4400"
"Wolverhampton City Council","http://opendatacommunities.org/id/metropolitan-district-council/wolverhampton","702382","Carwood Motor Units Limited","1248528","820.00","Services - Professional Fees","190548861","11/01/2019","Fleet Services","Fleet Management","R4400"
"Wolverhampton City Council","http://opendatacommunities.org/id/metropolitan-district-council/wolverhampton","702382","Carwood Motor Units Limited","1248779","528.23","Services - Professional Fees","190548862","11/01/2019","Fleet Services","Fleet Management","R4400"
"Wolverhampton City Council","http://opendatacommunities.org/id/metropolitan-district-council/wolverhampton","702396","Cater Walsh Reporting Ltd","109930","264.38","Services - Professional Fees","130240380","25/01/2019","Legal Services","Centralised External Legal Costs","R4400"
"Wolverhampton City Council","http://opendatacommunities.org/id/metropolitan-district-council/wolverhampton","702396","Cater Walsh Reporting Ltd","109910","44.44","Services - Professional Fees","130238350","02/01/2019","Legal Services","Centralised External Legal Costs","R4400"
"Wolverhampton City Council","http://opendatacommunities.org/id/metropolitan-district-council/wolverhampton","702401","Caterpillars Nursery Co UK Limited","TFT Spring 2019 Inst 1","2,829.60","TPP - Private Nursery Education Funding","190553192","23/01/2019","Early Years","Early Years Entitlement Funding for Disadvantaged 2 Year Olds","R5035"
"Wolverhampton City Council","http://opendatacommunities.org/id/metropolitan-district-council/wolverhampton","702401","Caterpillars Nursery Co UK Limited","NEF Spring 2019 INST 1","17,416.50","TPP - Private Nursery Education Funding","190553185","23/01/2019","Early Years","Early Years Universal Entitlement for 3 and 4 Year Olds","R5035"
"Wolverhampton City Council","http://opendatacommunities.org/id/metropolitan-district-council/wolverhampton","702418","Ccs Media Limited","3378483","1,371.87","Computing - Purchase of Hardware","130238351","18/01/2019","ICTS","Strategic ICTS (ICT Service Budget)","R4530"
"Wolverhampton City Council","http://opendatacommunities.org/id/metropolitan-district-council/wolverhampton","702418","Ccs Media Limited","3366940","419.68","Computing - Purchase of Hardware","130237604","02/01/2019","ICTS","Strategic ICTS (ICT Service Budget)","R4530"
"Wolverhampton City Council","http://opendatacommunities.org/id/metropolitan-district-council/wolverhampton","702450","GO Carz","10534","6.96","Section 17","130213141","23/01/2019","Strengthening Families","CP Area 3 - Graiseley","R6403"
"Wolverhampton City Council","http://opendatacommunities.org/id/metropolitan-district-council/wolverhampton","702450","GO Carz","14196","2,008.92","Client Transport","130241621","25/01/2019","Strengthening Families","Court Team","R3042"
"Wolverhampton City Council","http://opendatacommunities.org/id/metropolitan-district-council/wolverhampton","702450","GO Carz","14908","1,157.61","Client Transport","130240190","25/01/2019","Special Educational Needs","Special - Transport","R3042"
"Wolverhampton City Council","http://opendatacommunities.org/id/metropolitan-district-council/wolverhampton","702450","GO Carz","12886","793.20","Client Transport","130239522","11/01/2019","Children & Young People In Care","Looked After Team 1","R3042"
"Wolverhampton City Council","http://opendatacommunities.org/id/metropolitan-district-council/wolverhampton","702450","GO Carz","14697","536.50","Client Transport","130240481","25/01/2019","Special Educational Needs","Secondary- Transport","R3042"
"Wolverhampton City Council","http://opendatacommunities.org/id/metropolitan-district-council/wolverhampton","702450","GO Carz","14694","1,290.00","Client Transport","130240478","25/01/2019","Special Educational Needs","Primary - Transport","R3042"
"Wolverhampton City Council","http://opendatacommunities.org/id/metropolitan-district-council/wolverhampton","702450","GO Carz","14192","1,938.00","Client Transport","130239523","04/01/2019","Special Educational Needs","Special - Transport","R3042"
"Wolverhampton City Council","http://opendatacommunities.org/id/metropolitan-district-council/wolverhampton","702450","GO Carz","14198","2,191.68","Client Transport","130239333","04/01/2019","Special Educational Needs","Special - Transport","R3042"
"Wolverhampton City Council","http://opendatacommunities.org/id/metropolitan-district-council/wolverhampton","702450","GO Carz","14187","715.00","Client Transport","130239326","04/01/2019","Special Educational Needs","Primary - Transport","R3042"
"Wolverhampton City Council","http://opendatacommunities.org/id/metropolitan-district-council/wolverhampton","702450","GO Carz","14189","1,632.20","Client Transport","130239328","04/01/2019","Special Educational Needs","Special - Transport","R3042"
"Wolverhampton City Council","http://opendatacommunities.org/id/metropolitan-district-council/wolverhampton","702450","GO Carz","14193","1,699.60","Client Transport","130239329","04/01/2019","Special Educational Needs","Secondary- Transport","R3042"
"Wolverhampton City Council","http://opendatacommunities.org/id/metropolitan-district-council/wolverhampton","702450","GO Carz","14182","985.68","Client Transport","130239325","09/01/2019","Children & Young People In Care","Childrens with Disabilities Team","R3042"
"Wolverhampton City Council","http://opendatacommunities.org/id/metropolitan-district-council/wolverhampton","702450","GO Carz","14201","1,720.00","Client Transport","130239334","04/01/2019","Special Educational Needs","Primary - Transport","R3042"
"Wolverhampton City Council","http://opendatacommunities.org/id/metropolitan-district-council/wolverhampton","702450","GO Carz","14194","703.00","Client Transport","130239330","04/01/2019","Special Educational Needs","Secondary- Transport","R3042"
"Wolverhampton City Council","http://opendatacommunities.org/id/metropolitan-district-council/wolverhampton","702450","GO Carz","14188","1,000.00","Client Transport","130239327","04/01/2019","Special Educational Needs","Primary - Transport","R3042"
"Wolverhampton City Council","http://opendatacommunities.org/id/metropolitan-district-council/wolverhampton","702450","GO Carz","14692","750.00","Client Transport","130240476","25/01/2019","Special Educational Needs","Primary - Transport","R3042"
"Wolverhampton City Council","http://opendatacommunities.org/id/metropolitan-district-council/wolverhampton","702450","GO Carz","14691","555.00","Client Transport","130240475","25/01/2019","Special Educational Needs","Primary - Transport","R3042"
"Wolverhampton City Council","http://opendatacommunities.org/id/metropolitan-district-council/wolverhampton","702450","GO Carz","14696","1,274.70","Client Transport","130240480","25/01/2019","Special Educational Needs","Secondary- Transport","R3042"
"Wolverhampton City Council","http://opendatacommunities.org/id/metropolitan-district-council/wolverhampton","702450","GO Carz","14700","1,826.40","Client Transport","130240482","25/01/2019","Special Educational Needs","Special - Transport","R3042"
"Wolverhampton City Council","http://opendatacommunities.org/id/metropolitan-district-council/wolverhampton","702450","GO Carz","14685","1,284.72","Client Transport","130240903","25/01/2019","Children & Young People In Care","Childrens with Disabilities Team","R3042"
"Wolverhampton City Council","http://opendatacommunities.org/id/metropolitan-district-council/wolverhampton","702450","GO Carz","14907","405.00","Client Transport","130240484","25/01/2019","Special Educational Needs","Special - Transport","R3042"
"Wolverhampton City Council","http://opendatacommunities.org/id/metropolitan-district-council/wolverhampton","702450","GO Carz","15076","1,040.00","Client Transport","130240486","25/01/2019","Special Educational Needs","Special - Transport","R3042"
"Wolverhampton City Council","http://opendatacommunities.org/id/metropolitan-district-council/wolverhampton","702450","GO Carz","14703","1,290.00","Client Transport","130241546","25/01/2019","Special Educational Needs","Primary - Transport","R3042"
"Wolverhampton City Council","http://opendatacommunities.org/id/metropolitan-district-council/wolverhampton","702450","GO Carz","12572","6.00","Section 17","130224936","23/01/2019","Strengthening Families","CP Area 3 - Graiseley","R6403"
"Wolverhampton City Council","http://opendatacommunities.org/id/metropolitan-district-council/wolverhampton","702450","GO Carz","14961","146.81","Client Transport","130240485","25/01/2019","Children & Young People In Care","Fostering Team & Allowances","R3042"
"Wolverhampton City Council","http://opendatacommunities.org/id/metropolitan-district-council/wolverhampton","702450","GO Carz","14695","1,530.00","Client Transport","130240479","25/01/2019","Special Educational Needs","Special - Transport","R3042"
"Wolverhampton City Council","http://opendatacommunities.org/id/metropolitan-district-council/wolverhampton","702450","GO Carz","14693","949.20","Client Transport","130240477","25/01/2019","Special Educational Needs","Special - Transport","R3042"
"Wolverhampton City Council","http://opendatacommunities.org/id/metropolitan-district-council/wolverhampton","702450","GO Carz","14820","700.00","Client Transport","130240483","25/01/2019","Special Educational Needs","Special - Transport","R3042"
"Wolverhampton City Council","http://opendatacommunities.org/id/metropolitan-district-council/wolverhampton","702450","GO Carz","14413","1,560.00","Client Transport","130239687","16/01/2019","Special Educational Needs","Special - Transport","R3042"
"Wolverhampton City Council","http://opendatacommunities.org/id/metropolitan-district-council/wolverhampton","702450","GO Carz","10060","16.92","Section 17","130209145","23/01/2019","Strengthening Families","CP Area 3 - Graiseley","R6403"
"Wolverhampton City Council","http://opendatacommunities.org/id/metropolitan-district-council/wolverhampton","702450","GO Carz","14421","771.10","Client Transport","130242128","30/01/2019","Special Educational Needs","Special - Transport","R3042"
"Wolverhampton City Council","http://opendatacommunities.org/id/metropolitan-district-council/wolverhampton","702450","GO Carz","14197","2,468.80","Client Transport","130239332","30/01/2019","Strengthening Families","CP Area 7 - Low Hill","R3042"
"Wolverhampton City Council","http://opendatacommunities.org/id/metropolitan-district-council/wolverhampton","702450","GO Carz","14699","960.32","Client Transport","130240904","30/01/2019","Strengthening Families","CP Area 7 - Low Hill","R3042"
"Wolverhampton City Council","http://opendatacommunities.org/id/metropolitan-district-council/wolverhampton","702450","GO Carz","14666","79.08","Section 17","130240902","30/01/2019","Strengthening Families","CP Area 4- Bingley","R6403"
"Wolverhampton City Council","http://opendatacommunities.org/id/metropolitan-district-council/wolverhampton","702452","Central Workwear","4574","1,417.20","Laundry Expenses","130238956","16/01/2019","Catering","Education Catering - General Overheads","R4202"
"Wolverhampton City Council","http://opendatacommunities.org/id/metropolitan-district-council/wolverhampton","702452","Central Workwear","4539","178.00","Laundry Expenses","130238565","16/01/2019","Public Service Reform","Mayoral Expenses","R4202"
"Wolverhampton City Council","http://opendatacommunities.org/id/metropolitan-district-council/wolverhampton","702472","Chambers Electrical (Wolverhampton) Ltd","43008","22.00","Equipment - Purchase","130240641","16/01/2019","Bereavement Services","Crematorium","R4000"
"Wolverhampton City Council","http://opendatacommunities.org/id/metropolitan-district-council/wolverhampton","702494","Chartered Inst Environmental Health","PUB000432","650.00","Staff Advertising Costs","130238009","09/01/2019","Housing","Private Sector Housing","R1700"
"Wolverhampton City Council","http://opendatacommunities.org/id/metropolitan-district-council/wolverhampton","702497","Charterhouse Voice & Data PLC","TELINV005740","997.92","Services - General Licences","130237840","09/01/2019","School Planning & Resources","Music Support Team","R4402"
"Wolverhampton City Council","http://opendatacommunities.org/id/metropolitan-district-council/wolverhampton","702497","Charterhouse Voice & Data PLC","TELINV005733","2,851.20","Computing - Purchase of Hardware","130237839","09/01/2019","ICTS","Strategic ICTS (ICT Service Budget)","R4530"
"Wolverhampton City Council","http://opendatacommunities.org/id/metropolitan-district-council/wolverhampton","702497","Charterhouse Voice & Data PLC","T634170","281.55","Comms - Telephone Call charges","130237837","09/01/2019","ICTS","Strategic ICTS (ICT Service Budget)","R4505"
"Wolverhampton City Council","http://opendatacommunities.org/id/metropolitan-district-council/wolverhampton","702497","Charterhouse Voice & Data PLC","TELINV005735","2,138.40","Computing - Purchase of Hardware","130241676","30/01/2019","Adults Assessment & Care Management East","Adult Services � East","R4530"
"Wolverhampton City Council","http://opendatacommunities.org/id/metropolitan-district-council/wolverhampton","702497","Charterhouse Voice & Data PLC","TELINV005737","1,283.04","Computing - Purchase of Hardware","130241678","30/01/2019","ICTS","Strategic ICTS (ICT Service Budget)","R4530"
"Wolverhampton City Council","http://opendatacommunities.org/id/metropolitan-district-council/wolverhampton","702497","Charterhouse Voice & Data PLC","T701701","-1,440.53","Comms - Telephone Call charges","130241547","25/01/2019","ICTS","Strategic ICTS (ICT Service Budget)","R4505"
"Wolverhampton City Council","http://opendatacommunities.org/id/metropolitan-district-council/wolverhampton","702497","Charterhouse Voice & Data PLC","TELINV005741","997.92","Computing - Purchase of Hardware","130237841","09/01/2019","ICTS","Strategic ICTS (ICT Service Budget)","R4530"
"Wolverhampton City Council","http://opendatacommunities.org/id/metropolitan-district-council/wolverhampton","702497","Charterhouse Voice & Data PLC","QUO-24125-M8R5P6","1,425.00","Computing - Purchase of Hardware","130238755","25/01/2019","ICTS","Strategic ICTS (ICT Service Budget)","R4530"
"Wolverhampton City Council","http://opendatacommunities.org/id/metropolitan-district-council/wolverhampton","702497","Charterhouse Voice & Data PLC","TELINV005798","586.92","Services - Consultants","130238828","16/01/2019","Learning Disability Provider","Learning Disabilities Management","R4404"
"Wolverhampton City Council","http://opendatacommunities.org/id/metropolitan-district-council/wolverhampton","702497","Charterhouse Voice & Data PLC","TELINV005418","2,985.00","Training Expenses","130240905","18/01/2019","ICTS","Strategic ICTS (ICT Service Budget)","R1650"
"Wolverhampton City Council","http://opendatacommunities.org/id/metropolitan-district-council/wolverhampton","702497","Charterhouse Voice & Data PLC","TELINV005732","9,852.46","Computing - Purchase of Hardware","130237838","16/01/2019","Corporate Asset Management","Centralised Planned Maintenance","R4530"
"Wolverhampton City Council","http://opendatacommunities.org/id/metropolitan-district-council/wolverhampton","702497","Charterhouse Voice & Data PLC","TELINV005736","1,425.60","Computing - Purchase of Hardware","130241677","25/01/2019","ICTS","Strategic ICTS (ICT Service Budget)","R4530"
"Wolverhampton City Council","http://opendatacommunities.org/id/metropolitan-district-council/wolverhampton","702497","Charterhouse Voice & Data PLC","TELINV005797","1,140.48","Computing - Purchase of Hardware","130238827","16/01/2019","Schools","Stowlawn Primary School","R4530"
"Wolverhampton City Council","http://opendatacommunities.org/id/metropolitan-district-council/wolverhampton","702519","Child And Family Training Limited","1072","5,567.15","Training Expenses","130238106","09/01/2019","Public Service Reform","Workforce Development","R1650"
"Wolverhampton City Council","http://opendatacommunities.org/id/metropolitan-district-council/wolverhampton","702530","Chipside Limited","S191073","356.50","Computing - Purchase of Hardware","130241228","25/01/2019","Parking Services","Parking Enforcement","R4530"
"Wolverhampton City Council","http://opendatacommunities.org/id/metropolitan-district-council/wolverhampton","702543","Chubb Fire & Security Limited","6955018","1,963.11","Services - Security","130239974","18/01/2019","Maintenance Programme","Centralised R&M","R4405"
"Wolverhampton City Council","http://opendatacommunities.org/id/metropolitan-district-council/wolverhampton","702543","Chubb Fire & Security Limited","6954999RE-ISSUE","2,801.55","Services - Security","130234723","18/01/2019","Maintenance Programme","Centralised R&M","R4405"
"Wolverhampton City Council","http://opendatacommunities.org/id/metropolitan-district-council/wolverhampton","702543","Chubb Fire & Security Limited","7102065RE-ISSUE","126.00","Services - Security","130240906","25/01/2019","Maintenance Programme","Centralised R&M","R4405"
"Wolverhampton City Council","http://opendatacommunities.org/id/metropolitan-district-council/wolverhampton","702543","Chubb Fire & Security Limited","7169338","172.16","Services - Security","130239838","09/01/2019","Maintenance Programme","Centralised R&M","R4405"
"Wolverhampton City Council","http://opendatacommunities.org/id/metropolitan-district-council/wolverhampton","702543","Chubb Fire & Security Limited","50432728","35.00","Services - Security","130239335","04/01/2019","Maintenance Programme","Centralised R&M","R4405"
"Wolverhampton City Council","http://opendatacommunities.org/id/metropolitan-district-council/wolverhampton","702579","City Of Wolverhampton College","101623","450.00","Training Expenses","130237116","02/01/2019","Audit Services","Health & Safety","R1650"
"Wolverhampton City Council","http://opendatacommunities.org/id/metropolitan-district-council/wolverhampton","702579","City Of Wolverhampton College","100869","-4,180.00","Training Expenses","130240458","25/01/2019","Youth Offending","Bilston Junior Attendance Centre","R1650"
"Wolverhampton City Council","http://opendatacommunities.org/id/metropolitan-district-council/wolverhampton","702579","City Of Wolverhampton College","100565","5,018.45","Electricity","130237652","25/01/2019","Adult Education","Old Hall Street Main","R2100"
"Wolverhampton City Council","http://opendatacommunities.org/id/metropolitan-district-council/wolverhampton","702643","Cobalt Telephone Technologies Limited","R181231-138","1,387.00","Computing - Maint Agreements","130239525","09/01/2019","Parking Services","Car Parks Operational Staff","R4534"
"Wolverhampton City Council","http://opendatacommunities.org/id/metropolitan-district-council/wolverhampton","702643","Cobalt Telephone Technologies Limited","C181211","11,614.02","Services - Bank Charges","130239524","09/01/2019","Central Corporate Budgets","Corporate Management (Bank Charges)","R4403"
"Wolverhampton City Council","http://opendatacommunities.org/id/metropolitan-district-council/wolverhampton","702658","Coin-A-Drink Limited","366086-1","44.93","Equipment - Hire","130239526","16/01/2019","Bereavement Services","Crematorium","R4001"
"Wolverhampton City Council","http://opendatacommunities.org/id/metropolitan-district-council/wolverhampton","702658","Coin-A-Drink Limited","365279-1","27.73","Equipment - Hire","130241845","25/01/2019","Bereavement Services","Crematorium","R4001"
"Wolverhampton City Council","http://opendatacommunities.org/id/metropolitan-district-council/wolverhampton","702683","Commercial Body Fittings Limited","0000917992M","51.26","Equipment - Purchase","190551890","18/01/2019","Fleet Services","Fleet Management","R4000"
"Wolverhampton City Council","http://opendatacommunities.org/id/metropolitan-district-council/wolverhampton","702685","Digraph Transport Supplies Ltd","EUIV06747","15.05","Equipment - Purchase","190548944","11/01/2019","Fleet Services","Fleet Management","R4000"
"Wolverhampton City Council","http://opendatacommunities.org/id/metropolitan-district-council/wolverhampton","702685","Digraph Transport Supplies Ltd","EUIV06747","23.95","Equipment - Purchase","190548944","11/01/2019","Fleet Services","Fleet Management","R4000"
"Wolverhampton City Council","http://opendatacommunities.org/id/metropolitan-district-council/wolverhampton","702685","Digraph Transport Supplies Ltd","EUIV06747","14.10","Equipment - Purchase","190548944","11/01/2019","Fleet Services","Fleet Management","R4000"
"Wolverhampton City Council","http://opendatacommunities.org/id/metropolitan-district-council/wolverhampton","702685","Digraph Transport Supplies Ltd","BRIV077178","61.54","Equipment - Purchase","190551216","16/01/2019","Fleet Services","Fleet Management","R4000"
"Wolverhampton City Council","http://opendatacommunities.org/id/metropolitan-district-council/wolverhampton","702685","Digraph Transport Supplies Ltd","EUIV06756","67.16","Equipment - Purchase","190548945","11/01/2019","Fleet Services","Fleet Management","R4000"
"Wolverhampton City Council","http://opendatacommunities.org/id/metropolitan-district-council/wolverhampton","702685","Digraph Transport Supplies Ltd","EUIV06954","68.61","Equipment - Purchase","190548946","11/01/2019","Fleet Services","Fleet Management","R4000"
"Wolverhampton City Council","http://opendatacommunities.org/id/metropolitan-district-council/wolverhampton","702685","Digraph Transport Supplies Ltd","EUIV06954","342.80","Equipment - Purchase","190548946","11/01/2019","Fleet Services","Fleet Management","R4000"
"Wolverhampton City Council","http://opendatacommunities.org/id/metropolitan-district-council/wolverhampton","702685","Digraph Transport Supplies Ltd","EUIV07406","144.42","Equipment - Purchase","190551968","18/01/2019","Fleet Services","Fleet Management","R4000"
"Wolverhampton City Council","http://opendatacommunities.org/id/metropolitan-district-council/wolverhampton","702685","Digraph Transport Supplies Ltd","EUIV07298","96.28","Equipment - Purchase","190551967","18/01/2019","Fleet Services","Fleet Management","R4000"
"Wolverhampton City Council","http://opendatacommunities.org/id/metropolitan-district-council/wolverhampton","702685","Digraph Transport Supplies Ltd","EUIV07408","3.24","Equipment - Purchase","190551969","18/01/2019","Fleet Services","Fleet Management","R4000"
"Wolverhampton City Council","http://opendatacommunities.org/id/metropolitan-district-council/wolverhampton","702685","Digraph Transport Supplies Ltd","EUIV06777","199.90","Equipment - Purchase","190551964","18/01/2019","Fleet Services","Fleet Management","R4000"
"Wolverhampton City Council","http://opendatacommunities.org/id/metropolitan-district-council/wolverhampton","702685","Digraph Transport Supplies Ltd","EUIV07238","3.24","Equipment - Purchase","190551966","18/01/2019","Fleet Services","Fleet Management","R4000"
"Wolverhampton City Council","http://opendatacommunities.org/id/metropolitan-district-council/wolverhampton","702685","Digraph Transport Supplies Ltd","EUIV07238","55.86","Equipment - Purchase","190551966","18/01/2019","Fleet Services","Fleet Management","R4000"
"Wolverhampton City Council","http://opendatacommunities.org/id/metropolitan-district-council/wolverhampton","702685","Digraph Transport Supplies Ltd","EUIV07414","6.66","Equipment - Purchase","190551970","18/01/2019","Fleet Services","Fleet Management","R4000"
"Wolverhampton City Council","http://opendatacommunities.org/id/metropolitan-district-council/wolverhampton","702685","Digraph Transport Supplies Ltd","EUIV06890","29.58","Equipment - Purchase","190551965","18/01/2019","Fleet Services","Fleet Management","R4000"
"Wolverhampton City Council","http://opendatacommunities.org/id/metropolitan-district-council/wolverhampton","702685","Digraph Transport Supplies Ltd","EUIV07462","44.37","Equipment - Purchase","190551971","18/01/2019","Fleet Services","Fleet Management","R4000"
"Wolverhampton City Council","http://opendatacommunities.org/id/metropolitan-district-council/wolverhampton","702685","Digraph Transport Supplies Ltd","EUIV06509","38.12","Equipment - Purchase","190551963","18/01/2019","Fleet Services","Fleet Management","R4000"
"Wolverhampton City Council","http://opendatacommunities.org/id/metropolitan-district-council/wolverhampton","702697","Community Transport","20108","1,747.00","Client Transport","130241231","23/01/2019","Special Educational Needs","Special - Transport","R3042"
"Wolverhampton City Council","http://opendatacommunities.org/id/metropolitan-district-council/wolverhampton","702697","Community Transport","20107","1,744.20","Client Transport","130241230","23/01/2019","Special Educational Needs","Special - Transport","R3042"
"Wolverhampton City Council","http://opendatacommunities.org/id/metropolitan-district-council/wolverhampton","702717","Computershare Vouchers(Ex Busy Bees)","S-0002815306","870.29","Service Charges","130239108","02/01/2019","The Hub","Busy Bees Childcare Vouchers","R2205"
"Wolverhampton City Council","http://opendatacommunities.org/id/metropolitan-district-council/wolverhampton","702719","Concentric","P19626520190116","520.00","Client Allowances","190551344","18/01/2019","Children & Young People In Care","Looked After Team 2","R6301"
"Wolverhampton City Council","http://opendatacommunities.org/id/metropolitan-district-council/wolverhampton","702723","Concept Elevators (UK) Ltd","NV156040","54.00","R&M - Departmental planned (external)","130240909","25/01/2019","Maintenance Programme","Centralised R&M","R2001"
"Wolverhampton City Council","http://opendatacommunities.org/id/metropolitan-district-council/wolverhampton","702723","Concept Elevators (UK) Ltd","NV156070","135.00","R&M - Departmental planned (external)","130240911","25/01/2019","Maintenance Programme","Centralised R&M","R2001"
"Wolverhampton City Council","http://opendatacommunities.org/id/metropolitan-district-council/wolverhampton","702723","Concept Elevators (UK) Ltd","NV155814","188.58","R&M - Departmental planned (external)","130240192","18/01/2019","Maintenance Programme","Centralised R&M","R2001"
"Wolverhampton City Council","http://opendatacommunities.org/id/metropolitan-district-council/wolverhampton","702723","Concept Elevators (UK) Ltd","NV155421","180.00","R&M - Departmental planned (external)","130238829","04/01/2019","Maintenance Programme","Centralised R&M","R2001"
"Wolverhampton City Council","http://opendatacommunities.org/id/metropolitan-district-council/wolverhampton","702723","Concept Elevators (UK) Ltd","NV153782","531.50","R&M - Departmental planned (external)","130234139","25/01/2019","Maintenance Programme","Centralised R&M","R2001"
"Wolverhampton City Council","http://opendatacommunities.org/id/metropolitan-district-council/wolverhampton","702723","Concept Elevators (UK) Ltd","NV155478","45.00","R&M - Departmental planned (external)","130240908","25/01/2019","Maintenance Programme","Centralised R&M","R2001"
"Wolverhampton City Council","http://opendatacommunities.org/id/metropolitan-district-council/wolverhampton","702723","Concept Elevators (UK) Ltd","NV156265","524.09","R&M - Departmental planned (external)","130240914","25/01/2019","Maintenance Programme","Centralised R&M","R2001"
"Wolverhampton City Council","http://opendatacommunities.org/id/metropolitan-district-council/wolverhampton","702723","Concept Elevators (UK) Ltd","NV154044","898.65","R&M - Departmental planned (external)","130240876","25/01/2019","Maintenance Programme","Centralised R&M","R2001"
"Wolverhampton City Council","http://opendatacommunities.org/id/metropolitan-district-council/wolverhampton","702723","Concept Elevators (UK) Ltd","NV155471","63.00","R&M - Departmental planned (external)","130240191","16/01/2019","Maintenance Programme","Centralised R&M","R2001"
"Wolverhampton City Council","http://opendatacommunities.org/id/metropolitan-district-council/wolverhampton","702723","Concept Elevators (UK) Ltd","NV155830","540.08","R&M - Departmental planned (external)","130240193","16/01/2019","Maintenance Programme","Centralised R&M","R2001"
"Wolverhampton City Council","http://opendatacommunities.org/id/metropolitan-district-council/wolverhampton","702723","Concept Elevators (UK) Ltd","NV155420","180.00","R&M - Departmental planned (external)","130239339","04/01/2019","Maintenance Programme","Centralised R&M","R2001"
"Wolverhampton City Council","http://opendatacommunities.org/id/metropolitan-district-council/wolverhampton","702723","Concept Elevators (UK) Ltd","NV154348","735.31","R&M - Departmental planned (external)","130235664","04/01/2019","Maintenance Programme","Centralised R&M","R2001"
"Wolverhampton City Council","http://opendatacommunities.org/id/metropolitan-district-council/wolverhampton","702723","Concept Elevators (UK) Ltd","NV154678","36.00","R&M - Departmental planned (external)","130239109","04/01/2019","Maintenance Programme","Centralised R&M","R2001"
"Wolverhampton City Council","http://opendatacommunities.org/id/metropolitan-district-council/wolverhampton","702723","Concept Elevators (UK) Ltd","NV156054","432.00","R&M - Departmental planned (external)","130240910","25/01/2019","Maintenance Programme","Centralised R&M","R2001"
"Wolverhampton City Council","http://opendatacommunities.org/id/metropolitan-district-council/wolverhampton","702723","Concept Elevators (UK) Ltd","NV156258","225.00","R&M - Departmental planned (external)","130240913","25/01/2019","Maintenance Programme","Centralised R&M","R2001"
"Wolverhampton City Council","http://opendatacommunities.org/id/metropolitan-district-council/wolverhampton","702723","Concept Elevators (UK) Ltd","NV154438","90.00","R&M - Departmental planned (external)","130239338","04/01/2019","Maintenance Programme","Centralised R&M","R2001"
"Wolverhampton City Council","http://opendatacommunities.org/id/metropolitan-district-council/wolverhampton","702723","Concept Elevators (UK) Ltd","NV154693","36.00","R&M - Departmental planned (external)","130239110","04/01/2019","Maintenance Programme","Centralised R&M","R2001"
"Wolverhampton City Council","http://opendatacommunities.org/id/metropolitan-district-council/wolverhampton","702728","Concert Promoters Association","CPA/1430/2019","420.00","Subscriptions","130242129","30/01/2019","Visitor Economy","Visitor Economy - Development","R4701"
"Wolverhampton City Council","http://opendatacommunities.org/id/metropolitan-district-council/wolverhampton","702741","MIR Sheward Musical Instrument repairs","2280","305.00","Services - Professional Fees","130241232","23/01/2019","School Planning & Resources","Music Support Team","R4400"
"Wolverhampton City Council","http://opendatacommunities.org/id/metropolitan-district-council/wolverhampton","702758","Conwy County Borough Council","RE/243830432","168.05","Water Charges","130237117","02/01/2019","School Planning & Resources","Towers Outdoor Education Centre","R2400"
"Wolverhampton City Council","http://opendatacommunities.org/id/metropolitan-district-council/wolverhampton","702766","Cooper Mobile Services Ltd","13481","391.75","Hire of Vehicles","130241346","25/01/2019","Waste and Recycling Service","Waste Collection and Recycling Service - General","R3200"
"Wolverhampton City Council","http://opendatacommunities.org/id/metropolitan-district-council/wolverhampton","702766","Cooper Mobile Services Ltd","13489","1,634.00","Hire of Vehicles","130241548","25/01/2019","Waste and Recycling Service","Waste Collection and Recycling Service - General","R3200"
"Wolverhampton City Council","http://opendatacommunities.org/id/metropolitan-district-council/wolverhampton","702766","Cooper Mobile Services Ltd","42437","51.38","Insurance - General","130238013","11/01/2019","Waste and Recycling Service","Waste Man.Partnership-Domestic Coll�n","R4962"
"Wolverhampton City Council","http://opendatacommunities.org/id/metropolitan-district-council/wolverhampton","702766","Cooper Mobile Services Ltd","13490","2,660.00","Hire of Vehicles","130241549","30/01/2019","Waste and Recycling Service","Waste Collection and Recycling Service - General","R3200"
"Wolverhampton City Council","http://opendatacommunities.org/id/metropolitan-district-council/wolverhampton","702766","Cooper Mobile Services Ltd","42603","652.30","Services - Professional Fees","190555483","30/01/2019","Fleet Services","Fleet Management","R4400"
"Wolverhampton City Council","http://opendatacommunities.org/id/metropolitan-district-council/wolverhampton","702766","Cooper Mobile Services Ltd","42248","1,477.95","Vehicle Maintenance - Repairs","130238957","11/01/2019","Waste and Recycling Service","Anchor Lane Civic Amenity Site","R3022"
"Wolverhampton City Council","http://opendatacommunities.org/id/metropolitan-district-council/wolverhampton","702766","Cooper Mobile Services Ltd","42405","150.00","Insurance - General","130237422","30/01/2019","Waste and Recycling Service","Waste Man.Partnership-Domestic Coll�n","R4962"
"Wolverhampton City Council","http://opendatacommunities.org/id/metropolitan-district-council/wolverhampton","702774","Core Assets Childrens Services","P195873 03021920190114","3,024.00","TPP - Placement Foster Care Agency","190550119","16/01/2019","Children & Young People In Care","Out of City Placements","R5602"
"Wolverhampton City Council","http://opendatacommunities.org/id/metropolitan-district-council/wolverhampton","702786","Costa Ltd","A-PSI2839376","675.24","Provisions (Resale)","130234237","02/01/2019","Leisure Services","WV Active Catering","R4102"
"Wolverhampton City Council","http://opendatacommunities.org/id/metropolitan-district-council/wolverhampton","702786","Costa Ltd","A-PSI2839376","729.43","Provisions (Resale)","130234237","02/01/2019","Leisure Services","WV Active Catering","R4102"
"Wolverhampton City Council","http://opendatacommunities.org/id/metropolitan-district-council/wolverhampton","702786","Costa Ltd","A-PSI2883974","147.23","Provisions (Resale)","130236811","09/01/2019","Leisure Services","Bert Williams Leisure Centre Caf�","R4102"
"Wolverhampton City Council","http://opendatacommunities.org/id/metropolitan-district-council/wolverhampton","702786","Costa Ltd","A-PSI2883974","274.44","Provisions (Resale)","130236811","09/01/2019","Leisure Services","Bert Williams Leisure Centre Caf�","R4102"
"Wolverhampton City Council","http://opendatacommunities.org/id/metropolitan-district-council/wolverhampton","702786","Costa Ltd","A-PSI2893056","143.60","Provisions (Resale)","130237293","09/01/2019","Leisure Services","WV Active Catering","R4102"
"Wolverhampton City Council","http://opendatacommunities.org/id/metropolitan-district-council/wolverhampton","702786","Costa Ltd","A-PSI2893056","351.43","Provisions (Resale)","130237293","09/01/2019","Leisure Services","WV Active Catering","R4102"
"Wolverhampton City Council","http://opendatacommunities.org/id/metropolitan-district-council/wolverhampton","702786","Costa Ltd","A-PSI2867021","592.46","Provisions (Resale)","130235666","23/01/2019","Leisure Services","Bert Williams Leisure Centre Caf�","R4102"
"Wolverhampton City Council","http://opendatacommunities.org/id/metropolitan-district-council/wolverhampton","702796","Cougar Monitoring Limited","113022","7,920.00","Services - Security","130239976","09/01/2019","Facilities Management","Culwell Street Depot","R4405"
"Wolverhampton City Council","http://opendatacommunities.org/id/metropolitan-district-council/wolverhampton","702796","Cougar Monitoring Limited","111850","4,680.00","Services - Security","130234142","09/01/2019","Estates and Valuations","Industrial Premises ; Fordhouse Road","R4405"
"Wolverhampton City Council","http://opendatacommunities.org/id/metropolitan-district-council/wolverhampton","702796","Cougar Monitoring Limited","13023","7,920.00","Services - Security","130239977","09/01/2019","Facilities Management","Hickman Avenue Depot","R4405"
"Wolverhampton City Council","http://opendatacommunities.org/id/metropolitan-district-council/wolverhampton","702805","Countrywide Mobility Services Limited","H-29431","1,335.00","Equipment - Purchase","130238958","09/01/2019","Older People Provider Services","ILS Stores","R4000"
"Wolverhampton City Council","http://opendatacommunities.org/id/metropolitan-district-council/wolverhampton","702819","CPAG Limited","SI187306","4,400.85","Publications","130235867","04/01/2019","Community Financial Support","Welfare Rights","R4310"
"Wolverhampton City Council","http://opendatacommunities.org/id/metropolitan-district-council/wolverhampton","702819","CPAG Limited","SI188077","198.90","Publications","130239688","30/01/2019","Community Financial Support","Welfare Rights","R4310"
"Wolverhampton City Council","http://opendatacommunities.org/id/metropolitan-district-council/wolverhampton","702819","CPAG Limited","SI188090","758.10","Publications","130239689","30/01/2019","Community Financial Support","Welfare Rights","R4310"
"Wolverhampton City Council","http://opendatacommunities.org/id/metropolitan-district-council/wolverhampton","702821","Cpl Petroleum","1806963","15,512.05","Inventories","190551940","18/01/2019","-","General Fund Balance Sheet","B3000"
"Wolverhampton City Council","http://opendatacommunities.org/id/metropolitan-district-council/wolverhampton","702821","Cpl Petroleum","1806970","19,374.15","Inventories","190551941","18/01/2019","-","General Fund Balance Sheet","B3000"
"Wolverhampton City Council","http://opendatacommunities.org/id/metropolitan-district-council/wolverhampton","702821","Cpl Petroleum","1732605","972.27","Inventories","190548895","11/01/2019","-","General Fund Balance Sheet","B3000"
"Wolverhampton City Council","http://opendatacommunities.org/id/metropolitan-district-council/wolverhampton","702821","Cpl Petroleum","1732563","20,163.96","Inventories","190548894","11/01/2019","-","General Fund Balance Sheet","B3000"
"Wolverhampton City Council","http://opendatacommunities.org/id/metropolitan-district-council/wolverhampton","702821","Cpl Petroleum","1732673","20,287.04","Inventories","190548896","11/01/2019","-","General Fund Balance Sheet","B3000"
"Wolverhampton City Council","http://opendatacommunities.org/id/metropolitan-district-council/wolverhampton","702863","Credential Environmental Limited","018140","31.20","TPP - Waste Disposal","130237848","04/01/2019","Environmental Maintenance","Ground Maintenance East","R5003"
"Wolverhampton City Council","http://opendatacommunities.org/id/metropolitan-district-council/wolverhampton","702903","CTT (Wolverhampton) Limited","16377","1,425.00","Client Transport","130239340","04/01/2019","Special Educational Needs","Special - Transport","R3042"
"Wolverhampton City Council","http://opendatacommunities.org/id/metropolitan-district-council/wolverhampton","702910","Cummings Brothers","WC520","350.00","R&M - Departmental planned (external)","130240643","23/01/2019","Leisure Services","Central Baths","R2001"
"Wolverhampton City Council","http://opendatacommunities.org/id/metropolitan-district-council/wolverhampton","702910","Cummings Brothers","WC507","20.00","Furniture","130236084","25/01/2019","Facilities Management","Civic Centre","R4004"
"Wolverhampton City Council","http://opendatacommunities.org/id/metropolitan-district-council/wolverhampton","702910","Cummings Brothers","WC522","25.00","Materials","130240919","23/01/2019","Environmental Maintenance","Ground Maintenance East","R4007"
"Wolverhampton City Council","http://opendatacommunities.org/id/metropolitan-district-council/wolverhampton","702910","Cummings Brothers","WC517","102.50","Services - Supplies and Services to service users","130239111","04/01/2019","Safeguarding","Court of Protection, Funerals and Protection of Property","R4408"
"Wolverhampton City Council","http://opendatacommunities.org/id/metropolitan-district-council/wolverhampton","702910","Cummings Brothers","WC519","12.50","Materials","130239113","04/01/2019","Environmental Maintenance","Parks - Ranger Service","R4007"
"Wolverhampton City Council","http://opendatacommunities.org/id/metropolitan-district-council/wolverhampton","702910","Cummings Brothers","WC518","20.00","Materials","130239112","04/01/2019","Environmental Maintenance","Parks - Ranger Service","R4007"
"Wolverhampton City Council","http://opendatacommunities.org/id/metropolitan-district-council/wolverhampton","702910","Cummings Brothers","WC525","90.00","R&M - Departmental response (external)","130241687","30/01/2019","Strengthening Families","EI Area 3 - Graiseley","R2003"
"Wolverhampton City Council","http://opendatacommunities.org/id/metropolitan-district-council/wolverhampton","702910","Cummings Brothers","51023","2.50","Equipment - Purchase","190551942","18/01/2019","Fleet Services","Fleet Management","R4000"
"Wolverhampton City Council","http://opendatacommunities.org/id/metropolitan-district-council/wolverhampton","702910","Cummings Brothers","51023","2.50","Equipment - Purchase","190551942","18/01/2019","Fleet Services","Fleet Management","R4000"
"Wolverhampton City Council","http://opendatacommunities.org/id/metropolitan-district-council/wolverhampton","702910","Cummings Brothers","51023","3.50","Equipment - Purchase","190551942","18/01/2019","Fleet Services","Fleet Management","R4000"
"Wolverhampton City Council","http://opendatacommunities.org/id/metropolitan-district-council/wolverhampton","702912","Cunningham Lindsey United Kingdom","5714219","1,200.00","Insurance - General","130239980","30/01/2019","Audit Services","Property Insurances","R4962"
"Wolverhampton City Council","http://opendatacommunities.org/id/metropolitan-district-council/wolverhampton","702939","D & N Solicitors","02747-CourtFee","215.00","Services - Professional Fees","190545564","02/01/2019","Legal Services","Centralised External Legal Costs","R4400"
"Wolverhampton City Council","http://opendatacommunities.org/id/metropolitan-district-council/wolverhampton","702939","D & N Solicitors","02747-Baliakina","250.00","Services - Professional Fees","190545563","02/01/2019","Legal Services","Centralised External Legal Costs","R4400"
"Wolverhampton City Council","http://opendatacommunities.org/id/metropolitan-district-council/wolverhampton","702944","D C Nutt Sewing Machines Ltd","5433","124.00","Equipment - Purchase","130240645","30/01/2019","Adult Education","Continuing Education","R4000"
"Wolverhampton City Council","http://opendatacommunities.org/id/metropolitan-district-council/wolverhampton","702944","D C Nutt Sewing Machines Ltd","5433","19.50","Equipment - Purchase","130240645","30/01/2019","Adult Education","Continuing Education","R4000"
"Wolverhampton City Council","http://opendatacommunities.org/id/metropolitan-district-council/wolverhampton","702944","D C Nutt Sewing Machines Ltd","5327","350.00","Equipment - R & M","130240644","25/01/2019","Adult Education","Continuing Education","R4003"
"Wolverhampton City Council","http://opendatacommunities.org/id/metropolitan-district-council/wolverhampton","702944","D C Nutt Sewing Machines Ltd","5327","56.00","Equipment - R & M","130240644","25/01/2019","Adult Education","Continuing Education","R4003"
"Wolverhampton City Council","http://opendatacommunities.org/id/metropolitan-district-council/wolverhampton","702944","D C Nutt Sewing Machines Ltd","5327","6.00","Equipment - R & M","130240644","25/01/2019","Adult Education","Continuing Education","R4003"
"Wolverhampton City Council","http://opendatacommunities.org/id/metropolitan-district-council/wolverhampton","702944","D C Nutt Sewing Machines Ltd","5327","450.00","Equipment - R & M","130240644","25/01/2019","Adult Education","Continuing Education","R4003"
"Wolverhampton City Council","http://opendatacommunities.org/id/metropolitan-district-council/wolverhampton","702944","D C Nutt Sewing Machines Ltd","5327","140.00","Equipment - R & M","130240644","25/01/2019","Adult Education","Continuing Education","R4003"
"Wolverhampton City Council","http://opendatacommunities.org/id/metropolitan-district-council/wolverhampton","703043","Places for People Leisure Management","1084361","120.00","TPP - Public Health Contracts","130238830","16/01/2019","Sports Development","Free Swim Project (PCT)","R5060"
"Wolverhampton City Council","http://opendatacommunities.org/id/metropolitan-district-council/wolverhampton","703043","Places for People Leisure Management","1082118","189.86","Catering","130236987","02/01/2019","Public Service Reform","Workforce Development","R4100"
"Wolverhampton City Council","http://opendatacommunities.org/id/metropolitan-district-council/wolverhampton","703044","DC Projects (Wolverhampton) Limited","258","152,727.78","TPP - Other contractors","130239690","30/01/2019","Leisure Services","Leisure P.F.I.Scheme","R5099"
"Wolverhampton City Council","http://opendatacommunities.org/id/metropolitan-district-council/wolverhampton","703050","De Lage Landen Leasing Limited","90731800002201","856.76","Services - Professional Fees","130237297","02/01/2019","Human Resources","Salary Sacrifice Schemes","R4400"
"Wolverhampton City Council","http://opendatacommunities.org/id/metropolitan-district-council/wolverhampton","703050","De Lage Landen Leasing Limited","90731800002298","1,089.46","Services - Professional Fees","130238963","18/01/2019","Human Resources","Salary Sacrifice Schemes","R4400"
"Wolverhampton City Council","http://opendatacommunities.org/id/metropolitan-district-council/wolverhampton","703050","De Lage Landen Leasing Limited","90731800002257","588.17","Services - Professional Fees","130238354","11/01/2019","Human Resources","Salary Sacrifice Schemes","R4400"
"Wolverhampton City Council","http://opendatacommunities.org/id/metropolitan-district-council/wolverhampton","703050","De Lage Landen Leasing Limited","90731800002333","1,060.76","Services - Professional Fees","130239190","25/01/2019","Human Resources","Salary Sacrifice Schemes","R4400"
"Wolverhampton City Council","http://opendatacommunities.org/id/metropolitan-district-council/wolverhampton","703063","Dell Corporation/Dell Incorporated","7402308352","117.99","Computing - Purchase of Hardware","130133954","09/01/2019","ICTS","Strategic ICTS (ICT Service Budget)","R4530"
"Wolverhampton City Council","http://opendatacommunities.org/id/metropolitan-district-council/wolverhampton","703066","Demco Europe Limited","3154999","170.39","Equipment - Purchase","130238356","09/01/2019","Local Economy","Community Recreation Community Centre","R4000"
"Wolverhampton City Council","http://opendatacommunities.org/id/metropolitan-district-council/wolverhampton","703074","Dennis Eagle Limited","DE11185499","82.88","Equipment - Purchase","190548939","11/01/2019","Fleet Services","Fleet Management","R4000"
"Wolverhampton City Council","http://opendatacommunities.org/id/metropolitan-district-council/wolverhampton","703074","Dennis Eagle Limited","DE11184642","28.07","Equipment - Purchase","190548937","11/01/2019","Fleet Services","Fleet Management","R4000"
"Wolverhampton City Council","http://opendatacommunities.org/id/metropolitan-district-council/wolverhampton","703074","Dennis Eagle Limited","342330","192.38","Services - Professional Fees","190548905","11/01/2019","Fleet Services","Fleet Management","R4400"
"Wolverhampton City Council","http://opendatacommunities.org/id/metropolitan-district-council/wolverhampton","703074","Dennis Eagle Limited","342330","126.29","Services - Professional Fees","190548905","11/01/2019","Fleet Services","Fleet Management","R4400"
"Wolverhampton City Council","http://opendatacommunities.org/id/metropolitan-district-council/wolverhampton","703074","Dennis Eagle Limited","342330","168.38","Services - Professional Fees","190548905","11/01/2019","Fleet Services","Fleet Management","R4400"
"Wolverhampton City Council","http://opendatacommunities.org/id/metropolitan-district-council/wolverhampton","703074","Dennis Eagle Limited","342049","60.14","Services - Professional Fees","190548904","11/01/2019","Fleet Services","Fleet Management","R4400"
"Wolverhampton City Council","http://opendatacommunities.org/id/metropolitan-district-council/wolverhampton","703074","Dennis Eagle Limited","342049","180.41","Services - Professional Fees","190548904","11/01/2019","Fleet Services","Fleet Management","R4400"
"Wolverhampton City Council","http://opendatacommunities.org/id/metropolitan-district-council/wolverhampton","703074","Dennis Eagle Limited","D101348","17,687.50","Computing - Purchase of Software","130239981","09/01/2019","Waste and Recycling Service","Waste Collection and Recycling Service - General","R4531"
"Wolverhampton City Council","http://opendatacommunities.org/id/metropolitan-district-council/wolverhampton","703074","Dennis Eagle Limited","DE11183917","48.49","Equipment - Purchase","190548936","11/01/2019","Fleet Services","Fleet Management","R4000"
"Wolverhampton City Council","http://opendatacommunities.org/id/metropolitan-district-council/wolverhampton","703074","Dennis Eagle Limited","DE11183344","60.63","Equipment - Purchase","190548935","11/01/2019","Fleet Services","Fleet Management","R4000"
"Wolverhampton City Council","http://opendatacommunities.org/id/metropolitan-district-council/wolverhampton","703074","Dennis Eagle Limited","DE11183344","168.52","Equipment - Purchase","190548935","11/01/2019","Fleet Services","Fleet Management","R4000"
"Wolverhampton City Council","http://opendatacommunities.org/id/metropolitan-district-council/wolverhampton","703074","Dennis Eagle Limited","DE11185278","103.44","Equipment - Purchase","190548938","11/01/2019","Fleet Services","Fleet Management","R4000"
"Wolverhampton City Council","http://opendatacommunities.org/id/metropolitan-district-council/wolverhampton","703074","Dennis Eagle Limited","DE11182246","60.63","Equipment - Purchase","190548934","11/01/2019","Fleet Services","Fleet Management","R4000"
"Wolverhampton City Council","http://opendatacommunities.org/id/metropolitan-district-council/wolverhampton","703074","Dennis Eagle Limited","DE11185604","129.48","Equipment - Purchase","190548940","11/01/2019","Fleet Services","Fleet Management","R4000"
"Wolverhampton City Council","http://opendatacommunities.org/id/metropolitan-district-council/wolverhampton","703074","Dennis Eagle Limited","DE11178135","186.97","Equipment - Purchase","190548933","11/01/2019","Fleet Services","Fleet Management","R4000"
"Wolverhampton City Council","http://opendatacommunities.org/id/metropolitan-district-council/wolverhampton","703074","Dennis Eagle Limited","DE11178135","227.22","Equipment - Purchase","190548933","11/01/2019","Fleet Services","Fleet Management","R4000"
"Wolverhampton City Council","http://opendatacommunities.org/id/metropolitan-district-council/wolverhampton","703074","Dennis Eagle Limited","DE11185499","1,471.69","Equipment - Purchase","190548939","11/01/2019","Fleet Services","Fleet Management","R4000"
"Wolverhampton City Council","http://opendatacommunities.org/id/metropolitan-district-council/wolverhampton","703074","Dennis Eagle Limited","DE11182247","403.38","Equipment - Purchase","190555499","30/01/2019","Fleet Services","Fleet Management","R4000"
"Wolverhampton City Council","http://opendatacommunities.org/id/metropolitan-district-council/wolverhampton","703074","Dennis Eagle Limited","DE30047892","-27.64","Equipment - Purchase","190555500","30/01/2019","Fleet Services","Fleet Management","R4000"
"Wolverhampton City Council","http://opendatacommunities.org/id/metropolitan-district-council/wolverhampton","703074","Dennis Eagle Limited","DE30047892.1","-281.92","Equipment - Purchase","190555501","30/01/2019","Fleet Services","Fleet Management","R4000"
"Wolverhampton City Council","http://opendatacommunities.org/id/metropolitan-district-council/wolverhampton","703074","Dennis Eagle Limited","DE11186658","456.95","Equipment - Purchase","190551954","18/01/2019","Fleet Services","Fleet Management","R4000"
"Wolverhampton City Council","http://opendatacommunities.org/id/metropolitan-district-council/wolverhampton","703074","Dennis Eagle Limited","DE11186658","228.48","Equipment - Purchase","190551954","18/01/2019","Fleet Services","Fleet Management","R4000"
"Wolverhampton City Council","http://opendatacommunities.org/id/metropolitan-district-council/wolverhampton","703074","Dennis Eagle Limited","DE11181921","116.48","Equipment - Purchase","190555497","30/01/2019","Fleet Services","Fleet Management","R4000"
"Wolverhampton City Council","http://opendatacommunities.org/id/metropolitan-district-council/wolverhampton","703074","Dennis Eagle Limited","DE11181921","281.92","Equipment - Purchase","190555497","30/01/2019","Fleet Services","Fleet Management","R4000"
"Wolverhampton City Council","http://opendatacommunities.org/id/metropolitan-district-council/wolverhampton","703074","Dennis Eagle Limited","DE11188616","457.29","Equipment - Purchase","190551955","18/01/2019","Fleet Services","Fleet Management","R4000"
"Wolverhampton City Council","http://opendatacommunities.org/id/metropolitan-district-council/wolverhampton","703074","Dennis Eagle Limited","DE11181922","84.26","Equipment - Purchase","190555498","30/01/2019","Fleet Services","Fleet Management","R4000"
